Workbook

Sheet Instruções
B16: Aluno de pós-graduação: Gustavo Lineu Sartorello
B17: Professor responsável: Dr. Augusto Hauber Gameiro

Sheet Dados Prop
B5: DADOS DE IDENTIFICAÇÃO DA PROPRIEDADE
B7: NOME DA PROPRIEDADE:
B9: ENDEREÇO COMPLETO:
B11: BAIRRO: | D11: CEP:
B13: CIDADE/UF:
B15: TELEFONES:
B17: E-MAIL:
B19: NOME DO RESPONSÁVEL
B21: TELEFONE DO RESPONSÁVEL
B23: E-MAIL DO RESPONSÁVEL:
B25: DADOS DE IDENTIFICAÇÃO DO PROPRIETÁRIO
B27: NOME DO PROPRIETÁRIO:
B29: ENDEREÇO COMPLETO:
B31: BAIRRO: | D31: CEP:
B33: COMPLEMENTO
B35: CIDADE/UF:
B37: TELEFONES:
B39: E-MAIL:

Sheet CaractSistema
C5: Lotação máxima projetada para o período das secas | F5: animais
C6: Lotação máxima projetada para a estação chuvosa | F6: animais
C7: Qual é o tempo de duração da estação chuvosa | F7: meses
C9: Engorda de animais próprios + compras (Pessoa Física) | F9: animais
C10: Engorda de animais de prestação de serviço (Pessoa Jurídica) | F10: animais
C12: Área de ocupação da atividade de confinamento | F12: hectares
C13: Custo de oportunidade da terra | F13: ha/ano | G13: ?
C14: Juros sobre o capital imobilizado | F14: ao ano | G14: ?
C15: Juros sobre o capital de giro | F15: ao ano | G15: ?
C23: Mão de obra fixa
G24: Valor Mensal
C25: Função | D25: Descrição da função | E25: Nº de Funcionários | F25: Meses trabalhados | G25: por funcionário | H25: Salário Anual | I25: Custo Salário/boi | J25: Custo Salário/@ | K25: Custo Salário/Diária Boi
H26: =(F26*G26*E26)+((((F26/12)*G26*E26)+((F26/12)*G26*E26)+((F26/12)*G26*E26*(1/3)))*1.107) -> 0 | I26: =H26/(RelatZoot!$D$7-(RelatZoot!$D$7*RelatZoot!$D$15)) ->  | J26: =I26/RelatZoot!$D$19 ->  | K26: =H26/RelatZoot!$H$17 -> 
H27: =(F27*G27*E27)+((((F27/12)*G27*E27)+((F27/12)*G27*E27)+((F27/12)*G27*E27*(1/3)))*1.107) -> 0 | I27: =H27/(RelatZoot!$D$7-(RelatZoot!$D$7*RelatZoot!$D$15)) ->  | J27: =I27/RelatZoot!$D$19 ->  | K27: =H27/RelatZoot!$H$17 -> 
H28: =(F28*G28*E28)+((((F28/12)*G28*E28)+((F28/12)*G28*E28)+((F28/12)*G28*E28*(1/3)))*1.107) -> 0 | I28: =H28/(RelatZoot!$D$7-(RelatZoot!$D$7*RelatZoot!$D$15)) ->  | J28: =I28/RelatZoot!$D$19 ->  | K28: =H28/RelatZoot!$H$17 -> 
H29: 0 | I29: =H29/(RelatZoot!$D$7-(RelatZoot!$D$7*RelatZoot!$D$15)) ->  | J29: =I29/RelatZoot!$D$19 ->  | K29: =H29/RelatZoot!$H$17 -> 
H30: 0 | I30: =H30/(RelatZoot!$D$7-(RelatZoot!$D$7*RelatZoot!$D$15)) ->  | J30: =I30/RelatZoot!$D$19 ->  | K30: =H30/RelatZoot!$H$17 -> 
H31: 0 | I31: =H31/(RelatZoot!$D$7-(RelatZoot!$D$7*RelatZoot!$D$15)) ->  | J31: =I31/RelatZoot!$D$19 ->  | K31: =H31/RelatZoot!$H$17 -> 
H32: 0 | I32: =H32/(RelatZoot!$D$7-(RelatZoot!$D$7*RelatZoot!$D$15)) ->  | J32: =I32/RelatZoot!$D$19 ->  | K32: =H32/RelatZoot!$H$17 -> 
H33: 0 | I33: =H33/(RelatZoot!$D$7-(RelatZoot!$D$7*RelatZoot!$D$15)) ->  | J33: =I33/RelatZoot!$D$19 ->  | K33: =H33/RelatZoot!$H$17 -> 
H34: 0 | I34: =H34/(RelatZoot!$D$7-(RelatZoot!$D$7*RelatZoot!$D$15)) ->  | J34: =I34/RelatZoot!$D$19 ->  | K34: =H34/RelatZoot!$H$17 -> 
H35: 0 | I35: =H35/(RelatZoot!$D$7-(RelatZoot!$D$7*RelatZoot!$D$15)) ->  | J35: =I35/RelatZoot!$D$19 ->  | K35: =H35/RelatZoot!$H$17 -> 
H36: 0 | I36: =H36/(RelatZoot!$D$7-(RelatZoot!$D$7*RelatZoot!$D$15)) ->  | J36: =I36/RelatZoot!$D$19 ->  | K36: =H36/RelatZoot!$H$17 -> 
H37: 0 | I37: =H37/(RelatZoot!$D$7-(RelatZoot!$D$7*RelatZoot!$D$15)) ->  | J37: =I37/RelatZoot!$D$19 ->  | K37: =H37/RelatZoot!$H$17 -> 
C38: =C23&" - Total" -> Mão de obra fixa - Total | E38: =SUM(E26:E37) -> 0 | H38: =SUM(H26:H37) -> 0 | I38: =SUM(I26:I37) ->  | J38: =SUM(J26:J37) ->  | K38: =SUM(K26:K37) -> 
C41: Contratação de serviços
C44: Mão de obra temporária
C46: Função | D46: Descrição da Função | E46: Nº de horas mensais | F46: Meses trabalhados | G46: R$/hora | H46: R$/ano | I46: Custo/boi | J46: Custo/@ | K46: Custo/Diária Boi
H47: =E47*F47*G47 -> 0 | I47: =H47/(RelatZoot!$D$7-(RelatZoot!$D$7*RelatZoot!$D$15)) ->  | J47: =I47/RelatZoot!$D$19 ->  | K47: =H47/RelatZoot!$H$17 -> 
H48: =E48*F48*G48 -> 0 | I48: =H48/(RelatZoot!$D$7-(RelatZoot!$D$7*RelatZoot!$D$15)) ->  | J48: =I48/RelatZoot!$D$19 ->  | K48: =H48/RelatZoot!$H$17 -> 
H49: 0 | I49: =H49/(RelatZoot!$D$7-(RelatZoot!$D$7*RelatZoot!$D$15)) ->  | J49: =I49/RelatZoot!$D$19 ->  | K49: =H49/RelatZoot!$H$17 -> 
H50: 0 | I50: =H50/(RelatZoot!$D$7-(RelatZoot!$D$7*RelatZoot!$D$15)) ->  | J50: =I50/RelatZoot!$D$19 ->  | K50: =H50/RelatZoot!$H$17 -> 
H51: 0 | I51: =H51/(RelatZoot!$D$7-(RelatZoot!$D$7*RelatZoot!$D$15)) ->  | J51: =I51/RelatZoot!$D$19 ->  | K51: =H51/RelatZoot!$H$17 -> 
C52: =C44&" - Total" -> Mão de obra temporária - Total | H52: =SUM(H47:H51) -> 0 | I52: =SUM(I47:I51) ->  | J52: =SUM(J47:J51) ->  | K52: =SUM(K47:K51) -> 
C54: Contratação de serviços administrativos
D56: Descrição do serviço | E56: Período contratado | F56: Valor mensal | G56: Valor anual | H56: Custo/boi | I56: Custo/@ | J56: Custo/Diária Boi
A57: 11 | G57: =E57*F57 -> 0 | H57: =G57/(RelatZoot!$D$7-(RelatZoot!$D$7*RelatZoot!$D$15)) ->  | I57: =H57/RelatZoot!$D$19 ->  | J57: =G57/RelatZoot!$H$17 -> 
A58: 11 | G58: =E58*F58 -> 0 | H58: =G58/(RelatZoot!$D$7-(RelatZoot!$D$7*RelatZoot!$D$15)) ->  | I58: =H58/RelatZoot!$D$19 ->  | J58: =G58/RelatZoot!$H$17 -> 
A59: 11 | G59: 0 | H59: =G59/(RelatZoot!$D$7-(RelatZoot!$D$7*RelatZoot!$D$15)) ->  | I59: =H59/RelatZoot!$D$19 ->  | J59: =G59/RelatZoot!$H$17 -> 
A60: 11 | G60: 0 | H60: =G60/(RelatZoot!$D$7-(RelatZoot!$D$7*RelatZoot!$D$15)) ->  | I60: =H60/RelatZoot!$D$19 ->  | J60: =G60/RelatZoot!$H$17 -> 
A61: 11 | G61: 0 | H61: =G61/(RelatZoot!$D$7-(RelatZoot!$D$7*RelatZoot!$D$15)) ->  | I61: =H61/RelatZoot!$D$19 ->  | J61: =G61/RelatZoot!$H$17 -> 
A62: 11 | G62: 0 | H62: =G62/(RelatZoot!$D$7-(RelatZoot!$D$7*RelatZoot!$D$15)) ->  | I62: =H62/RelatZoot!$D$19 ->  | J62: =G62/RelatZoot!$H$17 -> 
A63: 11 | G63: 0 | H63: =G63/(RelatZoot!$D$7-(RelatZoot!$D$7*RelatZoot!$D$15)) ->  | I63: =H63/RelatZoot!$D$19 ->  | J63: =G63/RelatZoot!$H$17 -> 
C64: =C54&" - Total" -> Contratação de serviços administrativos - Total | F64: =SUM(F57:F63) -> 0 | G64: =SUM(G57:G63) -> 0 | H64: =SUM(H57:H63) ->  | I64: =SUM(I57:I63) ->  | J64: =SUM(J57:J63) -> 
C67: Hora máquina
D68: Máquina | E68: R$/hora
D69: Pá/esteira
C72: Combustíveis
C74: Descrição | D74: Litros mensais | E74: R$/Litro | F74: Meses | G74: R$/ano | H74: Custo/boi | I74: Custo/@ | J74: Custo/Diária Boi
G75: =D75*E75*F75 -> 0 | H75: =G75/(RelatZoot!$D$7-(RelatZoot!$D$7*RelatZoot!$D$15)) ->  | I75: =H75/RelatZoot!$D$19 ->  | J75: =G75/RelatZoot!$H$17 -> 
G76: =D76*E76*F76 -> 0 | H76: =G76/(RelatZoot!$D$7-(RelatZoot!$D$7*RelatZoot!$D$15)) ->  | I76: =H76/RelatZoot!$D$19 ->  | J76: =G76/RelatZoot!$H$17 -> 
G77: 0 | H77: =G77/(RelatZoot!$D$7-(RelatZoot!$D$7*RelatZoot!$D$15)) ->  | I77: =H77/RelatZoot!$D$19 ->  | J77: =G77/RelatZoot!$H$17 -> 
C78: =C72&" - Total" -> Combustíveis - Total | D78: =SUM(D75:D77) -> 0 | G78: =SUM(G75:G77) -> 0 | H78: =SUM(H75:H77) ->  | I78: =SUM(I75:I77) ->  | J78: =SUM(J75:J77) -> 
C81: Energia Elétrica
C83: Local | D83: Kw/mês | E83: Meses | F83: R$/Kw | G83: R$/ano | H83: Custo/boi | I83: Custo/@ | J83: Custo/Diária Boi
G84: =D84*E84*F84 -> 0 | H84: =G84/(RelatZoot!$D$7-(RelatZoot!$D$7*RelatZoot!$D$15)) ->  | I84: =H84/RelatZoot!$D$19 ->  | J84: =G84/RelatZoot!$H$17 -> 
G85: =D85*E85*F85 -> 0 | H85: =G85/(RelatZoot!$D$7-(RelatZoot!$D$7*RelatZoot!$D$15)) ->  | I85: =H85/RelatZoot!$D$19 ->  | J85: =G85/RelatZoot!$H$17 -> 
G86: 0 | H86: =G86/(RelatZoot!$D$7-(RelatZoot!$D$7*RelatZoot!$D$15)) ->  | I86: =H86/RelatZoot!$D$19 ->  | J86: =G86/RelatZoot!$H$17 -> 
G87: 0 | H87: =G87/(RelatZoot!$D$7-(RelatZoot!$D$7*RelatZoot!$D$15)) ->  | I87: =H87/RelatZoot!$D$19 ->  | J87: =G87/RelatZoot!$H$17 -> 
C88: =C81&" - Total" -> Energia Elétrica - Total | G88: =SUM(G84:G87) -> 0 | H88: =SUM(H84:H87) ->  | I88: =SUM(I84:I87) ->  | J88: =SUM(J84:J87) -> 
C91: Telefonia e serviço de internet
E93: Meses | F93: R$/mês | G93: R$/ano | H93: Custo/boi | I93: Custo/@ | J93: Custo/Diária Boi
G94: =F94*E94 -> 0 | H94: =G94/(RelatZoot!$D$7-(RelatZoot!$D$7*RelatZoot!$D$15)) ->  | I94: =H94/RelatZoot!$D$19 ->  | J94: =G94/RelatZoot!$H$17 -> 
G95: =F95*E95 -> 0 | H95: =G95/(RelatZoot!$D$7-(RelatZoot!$D$7*RelatZoot!$D$15)) ->  | I95: =H95/RelatZoot!$D$19 ->  | J95: =G95/RelatZoot!$H$17 -> 
C96: =C91&" - Total" -> Telefonia e serviço de internet - Total | G96: =SUM(G94:G95) -> 0 | H96: =SUM(H94:H95) ->  | I96: =SUM(I94:I95) ->  | J96: =SUM(J94:J95) -> 
C99: Animais de trabalho
C101: Tropa de animais para serviço no confinamento | F101: unidades
C102: Valor por animal | F102: R$/animal
C103: Vida útil | F103: anos
C104: Valor residual após tempo de serviço | F104: porcentagem
C107: Custo da Construção - conforme Sinduscon SP
C109: Instalações convencionais - CUB (GI) | F109: R$/m² | G109: ?
C110: Casa de funcionários e escritório administrativo - CUB (RP1Q) | F110: R$/m² | G110: ?

Sheet CaractZoot
C5: Animais de engorda | D5: Raça:
D7: Categoria | E7: 1
D8: Condição sexual | E8: 1
C10: Idade média incial | F10: meses
C11: Peso vivo inicial médio | F11: kg/animal | L11: Cálculo Boi Magro - atrelado ao Boi Gordo
C12: Peso vivo final médio | F12: kg/animal | M12: Boi Magro peso em @ | N12: =E11*0.5/15 -> 0
C13: Rendimento de carcaça | F13: % | M13: Boi Magro (R$/cab) | N13: =N12*E19 -> 0
C14: Dias médios que os animais permanecem em confinamento | F14: dias | M14: Ágio (%) | N14: 0.1
C15: Mortalidade | F15: % | M15: Boi Magro com ágio | N15: =(N13*N14)+N13 -> 0
C16: Período em que ocorre a mortalidade dos animais | F16: dias | G16: ? | M16: R$/@ do Boi Magro | N16: =N15/N12 -> 
C17: Oferta de dieta média, em quilos de matéria seca por dia | F17: kgMS/dia
C18: Valor de aquisição do animal para engorda | F18: R$/animal | G18: Dica
C19: Valor recebido por arroba de boi gordo | F19: R$/@
C20: Valor cobrado pela diária boi - (Pessoa Jurídica) | F20: R$/animal ao dia
C24: =C26&" e "&C41 -> Protocolo Sanitário e Protocolo de Identificação
C26: Protocolo Sanitário
D28: Descrição Produto | E28: R$/dose animal | F28: Custo/boi | G28: Custo/@ | H28: Custo/Diária Boi
A29: 17 | F29: =E29 -> 0 | G29: =F29/RelatZoot!$D$19 ->  | H29: =F29/RelatZoot!$D$12 -> 
A30: 17 | F30: 0 | G30: =F30/RelatZoot!$D$19 ->  | H30: =F30/RelatZoot!$D$12 -> 
A31: 17 | F31: 0 | G31: =F31/RelatZoot!$D$19 ->  | H31: =F31/RelatZoot!$D$12 -> 
A32: 17 | F32: 0 | G32: =F32/RelatZoot!$D$19 ->  | H32: =F32/RelatZoot!$D$12 -> 
A33: 17 | F33: 0 | G33: =F33/RelatZoot!$D$19 ->  | H33: =F33/RelatZoot!$D$12 -> 
A34: 17 | F34: 0 | G34: =F34/RelatZoot!$D$19 ->  | H34: =F34/RelatZoot!$D$12 -> 
A35: 17 | F35: 0 | G35: =F35/RelatZoot!$D$19 ->  | H35: =F35/RelatZoot!$D$12 -> 
A36: 17 | F36: 0 | G36: =F36/RelatZoot!$D$19 ->  | H36: =F36/RelatZoot!$D$12 -> 
A37: 17 | F37: 0 | G37: =F37/RelatZoot!$D$19 ->  | H37: =F37/RelatZoot!$D$12 -> 
A38: 17 | F38: 0 | G38: =F38/RelatZoot!$D$19 ->  | H38: =F38/RelatZoot!$D$12 -> 
C39: =C26&" "&TEXT("- Total","..") -> Protocolo Sanitário - Total | E39: =SUM(E29:E38) -> 0 | F39: =SUM(F29:F38) -> 0 | G39: =SUM(G29:G38) ->  | H39: =SUM(H29:H38) -> 
C41: Protocolo de Identificação
D43: Descrição Produto | E43: R$/unidade animal | F43: Custo/boi | G43: Custo/@ | H43: Custo/Diária Boi
A44: 9 | F44: =E44 -> 0 | G44: =F44/RelatZoot!$D$19 ->  | H44: =F44/RelatZoot!$D$12 -> 
A45: 9 | F45: 0 | G45: =F45/RelatZoot!$D$19 ->  | H45: =F45/RelatZoot!$D$12 -> 
A46: 9 | F46: 0 | G46: =F46/RelatZoot!$D$19 ->  | H46: =F46/RelatZoot!$D$12 -> 
A47: 9 | F47: 0 | G47: =F47/RelatZoot!$D$19 ->  | H47: =F47/RelatZoot!$D$12 -> 
A48: 9 | F48: 0 | G48: =F48/RelatZoot!$D$19 ->  | H48: =F48/RelatZoot!$D$12 -> 
A49: 6 | F49: 0 | G49: =F49/RelatZoot!$D$19 ->  | H49: =F49/RelatZoot!$D$12 -> 
A50: 7 | F50: 0 | G50: =F50/RelatZoot!$D$19 ->  | H50: =F50/RelatZoot!$D$12 -> 
C51: =C41&" - Total" -> Protocolo de Identificação - Total | E51: =SUM(E44:E50) -> 0 | F51: =SUM(F44:F50) -> 0 | G51: =SUM(G44:G50) ->  | H51: =SUM(H44:H50) -> 
C54: Oferta média/cabeça (kgMS) | D54: =CaractZoot!E17 -> 0 | F54: Perdas na alimentação (%)
C55: Oferta média/cabeça (kgMN) | D55: =H76 -> 0
C58: Alimentos | D58: Custo | E58: Teor de | F58: Custo | G58: Fornecimento | J58: Custo
D59: R$/t MN | E59: MS, % | F59: R$/t MS | G59: % | H59: KgMN | I59: kgMS | J59: R$/ingred
E60: 0.001 | F60: =D60/E60 -> 0 | H60: =(I60/E60) -> 0 | I60: =($D$54*G60) -> 0 | J60: =(I60*F60)/1000 -> 0
E61: 0.001 | F61: =D61/E61 -> 0 | H61: 0 | I61: 0 | J61: 0
E62: 0.001 | F62: =D62/E62 -> 0 | H62: 0 | I62: 0 | J62: 0
E63: 0.001 | F63: 0 | H63: 0 | I63: 0 | J63: 0
E64: 0.001 | F64: 0 | H64: 0 | I64: 0 | J64: 0
E65: 0.001 | F65: 0 | H65: 0 | I65: 0 | J65: 0
E66: 0.001 | F66: 0 | H66: 0 | I66: 0 | J66: 0
E67: 0.001 | F67: 0 | H67: 0 | I67: 0 | J67: 0
E68: 0.001 | F68: =D68/E68 -> 0 | H68: 0 | I68: 0 | J68: 0
E69: 0.001 | F69: 0 | H69: 0 | I69: 0 | J69: 0
E70: 0.001 | F70: 0 | H70: 0 | I70: 0 | J70: 0
E71: 0.001 | H71: 0 | I71: 0 | J71: 0
E72: 0.001 | F72: 0 | H72: 0 | I72: 0 | J72: 0
E73: 0.001 | F73: 0 | H73: 0 | I73: 0 | J73: 0
E74: 0.001 | F74: 0 | H74: 0 | I74: 0 | J74: 0
E75: 0.001 | F75: 0 | H75: 0 | I75: 0 | J75: 0
G76: =SUM(G60:G75) -> 0 | H76: =SUM(H60:H75) -> 0 | I76: =SUM(I60:I75) -> 0 | J76: =SUM(J60:J75) -> 0 | K76: Custo/dia/animal
J77: =J76/D54 ->  | K77: Custo Kg/MS

Sheet Instal
C5: Instalações - Custos e descrição das construções
C7: Piquetes/currais de engorda
C9: Deseja informar os custos e demais informações dos piquetes | G9: ?
C11: Frequência da limpeza dos currais de engorda - em média | F11: vezes por piquete ao ano
C13: Sistema de irrigação nos currais de engorda
C15: Custo total das instalações | F15: R$ | G15: Dica
C16: Vida útil do sistema | F16: anos
C17: Valor residual do sistema após o período de depreciação | F17: porcentagem
C18: Taxa de manutenção do curral | F18: porcentagem
C22: Curral de Manejo dos Animais
C24: Capacidade de processamento de animais curral de manejo | F24: animais
C26: Deseja informar o valor do curral | G26: ?
C28: Vida útil do curral | F28: anos
C29: Valor residual do curral após o período de depreciação | F29: porcentagem
C30: Taxa de manutenção do curral | F30: porcentagem
C34: Fábrica de Ração e anexos
C36: Área de construção do Aprisco - boxes de armazenamento + áreas anexas | F36: m²
C37: Valor do m² construído | F37: R$/m²
C39: Vida útil da construção | F39: anos
C40: Valor residual da construção após o período de depreciação | F40: porcentagem
C41: Taxa de manutenção da construção | F41: porcentagem
C42: Rateio da construção ( parte pertencente ao confinamento ) | F42: porcentagem
C46: Escritório Administrativo
C48: Área de construção do escritório | F48: m²
C49: Valor do m² construído | F49: R$/m²
C51: Vida útil da construção | F51: anos
C52: Valor residual da construção após o período de depreciação | F52: porcentagem
C53: Taxa de manutenção da construção | F53: porcentagem
C54: Rateio da construção ( parte pertencente ao confinamento ) | F54: porcentagem
C58: Barracão de Máquinas
C60: Área de construção do aprisco | F60: m²
C61: Valor do m² construído | F61: R$/m²
C63: Vida útil da construção | F63: anos
C64: Valor residual da construção após o período de depreciação | F64: porcentagem
C65: Taxa de manutenção da construção | F65: porcentagem
C66: Rateio da construção ( parte pertencente ao confinamento ) | F66: porcentagem
C70: Casas para funcionários do confinamento
C72: Quantas casas são utilizadas pelos funcionários | F72: unidades
C73: Área de construção da casa | F73: m²
C74: Valor do m² construído | F74: R$/m²
C76: Vida útil da construção | F76: anos
C77: Valor residual da construção após o período de depreciação | F77: porcentagem
C78: Taxa de manutenção da construção | F78: porcentagem
C79: Rateio da construção ( parte pertencente ao confinamento ) | F79: porcentagem
C83: Demais construções: | D83: Área de Vivência e outros (selaria, sanitários, quiosques, ...)
C85: Área de construção | F85: m²
C86: Valor do m² construído | F86: R$/m²
C88: Vida útil da construção | F88: anos
C89: Valor residual da construção após o período de depreciação | F89: porcentagem
C90: Taxa de manutenção da construção | F90: porcentagem
C91: Rateio da construção ( parte pertencente ao confinamento ) | F91: porcentagem

Sheet Maq Equip e Veic
C1: 3 | D1: 4 | E1: 5 | F1: 6 | G1: 8 | H1: 9 | I1: 10 | J1: 11 | K1: 12 | L1: 13 | M1: 14 | N1: 15 | O1: 16
C2: Unidades | D2: Valor Sugerido | E2: Vida Útil (anos) | F2: =Lista_Bens!F2 -> Valor Residual (%) | G2: =Lista_Bens!H2 -> Taxa de Manutenção | H2: =Lista_Bens!I2 -> Manutenção | I2: =Lista_Bens!J2 -> Depreciação | J2: =Lista_Bens!K2 -> Manutenção | K2: =Lista_Bens!L2 -> Depreciação | L2: =Lista_Bens!M2 -> Manutenção | M2: =Lista_Bens!N2 -> Depreciação | N2: =Lista_Bens!O2 -> Manutenção | O2: =Lista_Bens!P2 -> Depreciação
B3: Máquinas
A4: 1 | C4: =VLOOKUP($A4,MaqEquip_Maq,C$1,0) -> 0 | D4: 0 | E4: 0.1 | F4: 0 | G4: 0 | H4: 0 | I4: 0 | P4: =C4*D4 -> 0
A5: 1 | C5: 0 | D5: 0 | E5: 0.1 | F5: 0 | G5: 0 | H5: 0 | I5: 0 | P5: 0
A6: 1 | C6: 0 | D6: 0 | E6: 0.1 | F6: 0 | G6: 0 | H6: 0 | I6: 0 | P6: 0
A7: 1 | C7: 0 | D7: 0 | E7: 0.1 | F7: 0 | G7: 0 | H7: 0 | I7: 0 | P7: 0
A8: 1 | C8: 0 | D8: 0 | E8: 0.1 | F8: 0 | G8: 0 | H8: 0 | I8: 0 | P8: 0
A9: 7 | C9: 0 | D9: 0 | E9: 0.1 | F9: 0 | G9: 0 | H9: 0 | I9: 0 | P9: 0
A10: 1 | C10: 0 | D10: 0 | E10: 0.1 | F10: 0 | G10: 0 | H10: 0 | I10: 0 | P10: 0
A11: 1 | C11: 0 | D11: 0 | E11: 0.1 | F11: 0 | G11: 0 | H11: 0 | I11: 0 | P11: 0
A12: 1 | C12: 0 | D12: 0 | E12: 0.1 | F12: 0 | G12: 0 | H12: 0 | I12: 0 | P12: 0
A13: 1 | C13: 0 | D13: 0 | E13: 0.1 | F13: 0 | G13: 0 | H13: 0 | I13: 0 | P13: 0
A14: 1 | C14: =VLOOKUP($A14,MaqEquip_Maq,C$1,0) -> 0 | D14: 0 | E14: 0.1 | F14: 0 | G14: 0 | H14: 0 | I14: 0 | P14: 0
A15: 1 | C15: 0 | D15: 0 | E15: 0.1 | F15: 0 | G15: 0 | H15: 0 | I15: 0 | P15: 0
A16: 1 | C16: 0 | D16: 0 | E16: 0.1 | F16: 0 | G16: 0 | H16: 0 | I16: 0 | P16: 0
A17: 1 | C17: 0 | D17: 0 | E17: 0.1 | F17: 0 | G17: 0 | H17: 0 | I17: 0 | P17: 0
A18: 1 | C18: 0 | D18: 0 | E18: 0.1 | F18: 0 | G18: 0 | H18: 0 | I18: 0 | P18: 0
A19: 1 | C19: 0 | D19: 0 | E19: 0.1 | F19: 0 | G19: 0 | H19: 0 | I19: 0 | P19: 0
A20: 1 | C20: 0 | D20: 0 | E20: 0.1 | F20: 0 | G20: 0 | H20: 0 | I20: 0 | P20: 0
A21: 1 | C21: 0 | D21: 0 | E21: 0.1 | F21: 0 | G21: 0 | H21: 0 | I21: 0 | P21: 0
A22: 1 | C22: 0 | D22: 0 | E22: 0.1 | F22: 0 | G22: 0 | H22: 0 | I22: 0 | P22: 0
A23: 1 | C23: 0 | D23: 0 | E23: 0.1 | F23: 0 | G23: 0 | H23: 0 | I23: 0 | P23: 0
B24: =B3&" - Total" -> Máquinas - Total | D24: =C4*D4+C5*D5+C6*D6+C7*D7+C8*D8+C9*D9+C10*D10+C11*D11+C12*D12+C13*D13+C14*D14+C15*D15+C16*D16+C17*D17+C18*D18+C19*D19+C20*D20+C21*D21+C22*D22+C23*D23 -> 0 | H24: =SUM(H4:H23) -> 0 | I24: 0 | J24: =SUM(J4:J23) ->  | K24: =SUM(K4:K23) ->  | P24: 0
B25: Equipamentos
A26: 1 | C26: =VLOOKUP($A26,MaqEquip_Equip,C$1,0) -> 0 | D26: 0 | E26: 0.1 | F26: 0 | G26: 0 | H26: 0 | I26: 0 | P26: =C26*D26 -> 0
A27: 6 | C27: 0 | D27: 0 | E27: 0.1 | F27: 0 | G27: 0 | H27: 0 | I27: 0 | P27: 0
A28: 1 | C28: 0 | D28: 0 | E28: 0.1 | F28: 0 | G28: 0 | H28: 0 | I28: 0 | P28: 0
A29: 1 | C29: 0 | D29: 0 | E29: 0.1 | F29: 0 | G29: 0 | H29: 0 | I29: 0 | P29: 0
A30: 1 | C30: 0 | D30: 0 | E30: 0.1 | F30: 0 | G30: 0 | H30: 0 | I30: 0 | P30: 0
A31: 1 | C31: 0 | D31: 0 | E31: 0.1 | F31: 0 | G31: 0 | H31: 0 | I31: 0 | P31: 0
A32: 1 | C32: 0 | D32: 0 | E32: 0.1 | F32: 0 | G32: 0 | H32: 0 | I32: 0 | P32: 0
A33: 1 | C33: 0 | D33: 0 | E33: 0.1 | F33: 0 | G33: 0 | H33: 0 | I33: 0 | P33: 0
A34: 1 | C34: 0 | D34: 0 | E34: 0.1 | F34: 0 | G34: 0 | H34: 0 | I34: 0 | P34: 0
A35: 1 | C35: 0 | D35: 0 | E35: 0.1 | F35: 0 | G35: 0 | H35: 0 | I35: 0 | P35: 0
A36: 1 | C36: =VLOOKUP($A36,MaqEquip_Equip,C$1,0) -> 0 | D36: 0 | E36: 0.1 | F36: 0 | G36: 0 | H36: 0 | I36: 0 | P36: 0
A37: 1 | C37: 0 | D37: 0 | E37: 0.1 | F37: 0 | G37: 0 | H37: 0 | I37: 0 | P37: 0
A38: 1 | C38: 0 | D38: 0 | E38: 0.1 | F38: 0 | G38: 0 | H38: 0 | I38: 0 | P38: 0
A39: 14 | C39: 0 | D39: 0 | E39: 0.1 | F39: 0 | G39: 0 | H39: 0 | I39: 0 | P39: 0
A40: 1 | C40: 0 | D40: 0 | E40: 0.1 | F40: 0 | G40: 0 | H40: 0 | I40: 0 | P40: 0
A41: 1 | C41: 0 | D41: 0 | E41: 0.1 | F41: 0 | G41: 0 | H41: 0 | I41: 0 | P41: 0
A42: 1 | C42: 0 | D42: 0 | E42: 0.1 | F42: 0 | G42: 0 | H42: 0 | I42: 0 | P42: 0
A43: 1 | C43: 0 | D43: 0 | E43: 0.1 | F43: 0 | G43: 0 | H43: 0 | I43: 0 | P43: 0
A44: 1 | C44: 0 | D44: 0 | E44: 0.1 | F44: 0 | G44: 0 | H44: 0 | I44: 0 | P44: 0
A45: 1 | C45: 0 | D45: 0 | E45: 0.1 | F45: 0 | G45: 0 | H45: 0 | I45: 0 | P45: 0
D46: =C26*D26+C27*D27+C28*D28+C29*D29+C30*D30+C31*D31+C32*D32+C33*D33+C34*D34+C35*D35+C36*D36+C37*D37+C38*D38+C39*D39+C40*D40+C41*D41+C42*D42+C43*D43+C44*D44+C45*D45 -> 0 | H46: =SUM(H26:H45) -> 0 | I46: 0 | J46: =SUM(J26:J45) ->  | K46: =SUM(K26:K45) ->  | P46: 0
B47: Veículos
A48: 1 | C48: =VLOOKUP($A48,MaqEquip_Veic,C$1,0) -> 0 | D48: 0 | E48: 0.1 | F48: 0 | G48: 0 | H48: 0 | I48: 0 | P48: =C48*D48 -> 0
A49: 1 | C49: 0 | D49: 0 | E49: 0.1 | F49: 0 | G49: 0 | H49: 0 | I49: 0 | P49: 0
A50: 1 | C50: 0 | D50: 0 | E50: 0.1 | F50: 0 | G50: 0 | H50: 0 | I50: 0 | P50: 0
A51: 1 | C51: 0 | D51: 0 | E51: 0.1 | F51: 0 | G51: 0 | H51: 0 | I51: 0 | P51: 0
A52: 1 | C52: 0 | D52: 0 | E52: 0.1 | F52: 0 | G52: 0 | H52: 0 | I52: 0 | P52: 0
A53: 1 | C53: 0 | D53: 0 | E53: 0.1 | F53: 0 | G53: 0 | H53: 0 | I53: 0 | P53: 0
A54: 1 | C54: 0 | D54: 0 | E54: 0.1 | F54: 0 | G54: 0 | H54: 0 | I54: 0 | P54: 0
A55: 1 | C55: 0 | D55: 0 | E55: 0.1 | F55: 0 | G55: 0 | H55: 0 | I55: 0 | P55: 0
A56: 1 | C56: 0 | D56: 0 | E56: 0.1 | F56: 0 | G56: 0 | H56: 0 | I56: 0 | P56: 0
A57: 1 | C57: 0 | D57: 0 | E57: 0.1 | F57: 0 | G57: 0 | H57: 0 | I57: 0 | P57: 0
B58: =B47&" - Total" -> Veículos - Total | D58: =C48*D48+C49*D49+C50*D50+C51*D51+C52*D52+C53*D53+C54*D54+C55*D55+C56*D56+C57*D57 -> 0 | H58: =SUM(H48:H57) -> 0 | I58: 0 | J58: =SUM(J48:J57) ->  | K58: =SUM(K48:K57) ->  | P58: =SUM(P4:P57) -> 0

Sheet Mat Escrit
C1: 3 | D1: 4 | E1: 5 | F1: 6 | G1: 8 | H1: 9 | I1: 10 | J1: 11 | K1: 12 | L1: 13 | M1: 14 | N1: 15 | O1: 16
C2: Unidades | D2: Valor Sugerido | E2: Vida Útil (anos) | F2: =Lista_Bens!F2 -> Valor Residual (%) | G2: =Lista_Bens!H2 -> Taxa de Manutenção | H2: =Lista_Bens!I2 -> Manutenção | I2: =Lista_Bens!J2 -> Depreciação | J2: =Lista_Bens!K2 -> Manutenção | K2: =Lista_Bens!L2 -> Depreciação | L2: =Lista_Bens!M2 -> Manutenção | M2: =Lista_Bens!N2 -> Depreciação | N2: =Lista_Bens!O2 -> Manutenção | O2: =Lista_Bens!P2 -> Depreciação
A3: Material de Escritório
A4: 1 | C4: =VLOOKUP($A4,MaqEquip_Mat,C$1,0) -> 0 | D4: 0 | E4: 0.1 | F4: 0 | G4: 0 | H4: 0 | I4: 0 | P4: =C4*D4 -> 0
A5: 1 | C5: 0 | D5: 0 | E5: 0.1 | F5: 0 | G5: 0 | H5: 0 | I5: 0 | P5: 0
A6: 1 | C6: 0 | D6: 0 | E6: 0.1 | F6: 0 | G6: 0 | H6: 0 | I6: 0 | P6: 0
A7: 1 | C7: 0 | D7: 0 | E7: 0.1 | F7: 0 | G7: 0 | H7: 0 | I7: 0 | P7: 0
A8: 1 | C8: 0 | D8: 0 | E8: 0.1 | F8: 0 | G8: 0 | H8: 0 | I8: 0 | P8: 0
A9: 1 | C9: 0 | D9: 0 | E9: 0.1 | F9: 0 | G9: 0 | H9: 0 | I9: 0 | P9: 0
A10: 1 | C10: 0 | D10: 0 | E10: 0.1 | F10: 0 | G10: 0 | H10: 0 | I10: 0 | P10: 0
A11: 1 | C11: 0 | D11: 0 | E11: 0.1 | F11: 0 | G11: 0 | H11: 0 | I11: 0 | P11: 0
A12: 1 | C12: 0 | D12: 0 | E12: 0.1 | F12: 0 | G12: 0 | H12: 0 | I12: 0 | P12: 0
A13: 1 | C13: 0 | D13: 0 | E13: 0.1 | F13: 0 | G13: 0 | H13: 0 | I13: 0 | P13: 0
A14: 1 | C14: 0 | D14: 0 | E14: 0.1 | F14: 0 | G14: 0 | H14: 0 | I14: 0 | P14: 0
A15: 1 | C15: 0 | D15: 0 | E15: 0.1 | F15: 0 | G15: 0 | H15: 0 | I15: 0 | P15: 0
A16: 1 | C16: 0 | D16: 0 | E16: 0.1 | F16: 0 | G16: 0 | H16: 0 | I16: 0 | P16: 0
A17: 1 | C17: 0 | D17: 0 | E17: 0.1 | F17: 0 | G17: 0 | H17: 0 | I17: 0 | P17: 0
A18: 1 | C18: 0 | D18: 0 | E18: 0.1 | F18: 0 | G18: 0 | H18: 0 | I18: 0 | P18: 0
D19: =C4*D4+C5*D5+C6*D6+C7*D7+C8*D8+C9*D9+C10*D10+C11*D11+C12*D12+C13*D13+C14*D14+C15*D15+C16*D16+C17*D17+C18*D18 -> 0 | H19: =SUM(H4:H18) -> 0 | I19: 0 | P19: 0

Sheet Relatório_Econ
D2: Itens do custo | E2: =AlocaçãoCustos!H2 -> CUSTO POR:
E3: =AlocaçãoCustos!$I$3 -> animal | F3: =AlocaçãoCustos!$J$3 -> arroba | G3: =AlocaçãoCustos!$K$3 -> diária boi | H3: % do CT
B4: A - CUSTOS VARIÁVEIS - CV
C5: 1 | D5: Aquisição de animais | E5: =AlocaçãoCustos!I6 -> 0 | F5: =AlocaçãoCustos!J6 ->  | G5: =AlocaçãoCustos!K6 -> - | H5: =E5/$E$33 -> 
C6: 2 | D6: Alimentação | E6: =AlocaçãoCustos!I7 -> 0 | F6: =AlocaçãoCustos!J7 ->  | G6: =AlocaçãoCustos!K7 -> 0
C7: 3 | D7: Manejo sanitário | E7: =AlocaçãoCustos!I8 -> 0 | F7: =AlocaçãoCustos!J8 ->  | G7: =AlocaçãoCustos!K8 -> 
C8: 4 | D8: Manejo de identificação | E8: =AlocaçãoCustos!I9 -> 0 | F8: =AlocaçãoCustos!J9 ->  | G8: =AlocaçãoCustos!K9 -> 
C9: 5 | D9: Outros custos variáveis | E9: =AlocaçãoCustos!I18 ->  | F9: =AlocaçãoCustos!J18 ->  | G9: =AlocaçãoCustos!K18 -> 
C10: 6 | D10: ='Custos F V'!C62 -> Impostos Variáveis | E10: =AlocaçãoCustos!I20 ->  | F10: =AlocaçãoCustos!J20 ->  | G10: =AlocaçãoCustos!K20 -> 
C11: =AlocaçãoCustos!B22 &AlocaçãoCustos!C22 -> SubTotal A - Custos Variáveis (1 a 6) | E11: =AlocaçãoCustos!I22 ->  | F11: =AlocaçãoCustos!J22 ->  | G11: =AlocaçãoCustos!K22 -> 
B12: B - CUSTOS SEMIFIXOS - CSF
C13: 7 | D13: =CaractSistema!C81 -> Energia Elétrica | E13: =AlocaçãoCustos!I25 ->  | F13: =AlocaçãoCustos!J25 ->  | G13: =AlocaçãoCustos!K25 ->  | H13: =E13/$E$33 -> 
C14: 8 | D14: =CaractSistema!C91 -> Telefonia e serviço de internet | E14: =AlocaçãoCustos!I26 ->  | F14: =AlocaçãoCustos!J26 ->  | G14: =AlocaçãoCustos!K26 ->  | H14: =E14/$E$33 -> 
C15: 9 | D15: =CaractSistema!C72 -> Combustíveis | E15: =AlocaçãoCustos!I27 ->  | F15: =AlocaçãoCustos!J27 ->  | G15: =AlocaçãoCustos!K27 ->  | H15: =E15/$E$33 -> 
C16: 10 | D16: Outros custos semifixos | E16: =AlocaçãoCustos!I29 ->  | F16: =AlocaçãoCustos!J29+AlocaçãoCustos!J14 ->  | G16: =AlocaçãoCustos!K29+AlocaçãoCustos!K14 ->  | H16: =E16/$E$33 -> 
C17: =AlocaçãoCustos!B31 &AlocaçãoCustos!C31 -> SubTotal B - Custos Semifixos (7 a 10) | E17: =AlocaçãoCustos!I31 ->  | F17: =AlocaçãoCustos!J31 ->  | G17: =AlocaçãoCustos!K31 ->  | H17: =E17/$E$33 -> 
B18: C - CUSTOS FIXOS - CF
C19: 11 | D19: Mão de obra | E19: =AlocaçãoCustos!I35 ->  | F19: =AlocaçãoCustos!J35 ->  | G19: =AlocaçãoCustos!K35 ->  | H19: =E19/$E$33 -> 
C20: 12 | D20: Depreciações | E20: =AlocaçãoCustos!I45 ->  | F20: =AlocaçãoCustos!J45 ->  | G20: =AlocaçãoCustos!K45 ->  | H20: =E20/$E$33 -> 
C21: 13 | D21: Manutenção | E21: =AlocaçãoCustos!I54 ->  | F21: =AlocaçãoCustos!J54 ->  | G21: =AlocaçãoCustos!K54 ->  | H21: =E21/$E$33 -> 
C22: 14 | D22: Outros custos fixos | E22: =AlocaçãoCustos!I57 -> 0 | F22: =AlocaçãoCustos!J57 -> 0 | G22: =AlocaçãoCustos!K57 -> 0 | H22: =E22/$E$33 -> 
C23: =AlocaçãoCustos!B59 &AlocaçãoCustos!C59 -> SubTotal C - Custos Fixos (11 a 14) | E23: =AlocaçãoCustos!I59 ->  | F23: =AlocaçãoCustos!J59 ->  | G23: =AlocaçãoCustos!K59 ->  | H23: =E23/$E$33 -> 
B24: D - CUSTO COM A RENDA DOS FATORES - CO
C25: 15 | D25: Remuneração do capital de giro | E25: =AlocaçãoCustos!I68 ->  | F25: =AlocaçãoCustos!J68 ->  | G25: =AlocaçãoCustos!K68 ->  | H25: =E25/$E$33 -> 
C26: 16 | D26: Remuneração do capital fixo | E26: =AlocaçãoCustos!I70 ->  | F26: =AlocaçãoCustos!J70 ->  | G26: =AlocaçãoCustos!K70 ->  | H26: =E26/$E$33 -> 
C27: 17 | D27: Remuneração da terra | E27: =AlocaçãoCustos!I72 ->  | F27: =AlocaçãoCustos!J72 ->  | G27: =AlocaçãoCustos!K72 ->  | H27: =E27/$E$33 -> 
C28: =AlocaçãoCustos!B74 &AlocaçãoCustos!C74 -> SubTotal D - Renda dos Fatores (15 a 17) | E28: =AlocaçãoCustos!I74 ->  | F28: =AlocaçãoCustos!J74 ->  | G28: =AlocaçãoCustos!K74 ->  | H28: =E28/$E$33 -> 
B30: E - CUSTO OPERACIONAL EFETIVO - COE (A + B + 11) | E30: =AlocaçãoCustos!I77 ->  | F30: =AlocaçãoCustos!J77 ->  | G30: =AlocaçãoCustos!K77 ->  | H30: =E30/$E$33 -> 
B31: F - CUSTO OPERACIONAL TOTAL - COT (A + B + C) | E31: =AlocaçãoCustos!I78 ->  | F31: =AlocaçãoCustos!J78 ->  | G31: =AlocaçãoCustos!K78 ->  | H31: =E31/$E$33 -> 
B33: G - CUSTO TOTAL - CT (A + B + C + D) | E33: =AlocaçãoCustos!I80 ->  | F33: =AlocaçãoCustos!J80 ->  | G33: =AlocaçãoCustos!K80 -> 
B35: H - CUSTO OPERACIONAL POR DIA - COPd | G35: =AlocaçãoCustos!K83 -> 
B37: RECEITAS | E37: =RelatZoot!D14*RelatZoot!D19 -> 0 | F37: =RelatZoot!D14 -> 0 | G37: =CaractZoot!E20 -> 0
C39: Lucro ou Prejuízo Econômico - Atividade | E39: =E37-E33 ->  | F39: =F37-F33 -> 
C41: Renda ao Produtor | E41: =E39+E28 ->  | F41: =F39+F28 ->  | G41: =G39+G28 -> 
C43: =AlocaçãoCustos!B87 -> Perdas econômicas | E43: =AlocaçãoCustos!I87 ->  | F43: =AlocaçãoCustos!J87 -> 
C44: =AlocaçãoCustos!B88 -> Perdas econômicas por diária boi | E44: =AlocaçãoCustos!I88 ->  | F44: =AlocaçãoCustos!J88 ->  | G44: =AlocaçãoCustos!K88 -> 
C46: =AlocaçãoCustos!J86 -> Ociosidade do sistema (%) | E46: =AlocaçãoCustos!K86 -> 

Sheet PiqEngord
C3: Custo total das instalações por animal | D3: =H35/RelatZoot!M7 ->  | E3: R$/animal
C5: Espaço por animal no período da estação seca | E5: m² | G5: Piquetes de engorda
C6: Espaço de cocho por animal | E6: cm lineares por animal | G6: Número de piquetes | I6: =CaractSistema!E5/PiqEngord!D7 ->  | J6: unidades
C7: Capacidade máxima de animais por curral na estação seca | E7: animais | G7: Largura | I7: =IF(PiqEngord!D6>0,(PiqEngord!D6*PiqEngord!D7)/100,(33.3334*PiqEngord!D7)/100) -> 0 | J7: m
C8: Número de linhas de cocho | E8: linhas | G8: Pronfundidade | I8: =((PiqEngord!D5*PiqEngord!D7)/I7) ->  | J8: m
C9: Largura útil da pista de trato | E9: metros | G9: Largura sem porteira | I9: =I7-PiqEngord!D10 -> 0 | J9: m
C10: Porteira, largura | E10: metros | G10: Área do piquete | I10: =I7*I8 ->  | J10: m²
C11: Distancia entre palanques | E11: metros
C12: Quantidade de fios na cerca, sem choque | E12: unidades
C13: Quntidade de fios de cordoalha no cocho | E13: unidades
C15: Vida útil da instalação | E15: anos
C16: Valor residual da instalação após o período de depreciação | E16: porcentagem
C17: Taxa de manutenção | E17: porcentagem
C19: Descrição | D19: Valor | F19: Total do sistema
C20: Mão de obra para montagem do piquete (cerca) | E20: R$/piquete | F20: =I6 ->  | G20: unidades | H20: =F20*D20 -> 
C21: Preparo do solo - terraplanagem (Limpeza e compactação) | E21: R$/m² | H21: =(D21*I10*I6)*1.05 -> 
C22: Pista de trato (corte, aterro, e base de solo brita) | E22: R$/m² | H22: =(D22*D9*I7*I6)*1.05 -> 
C23: Porteiras - em aço | E23: R$/unidade | F23: =I6*1.05 ->  | G23: unidades | H23: =D23*F23 -> 
C24: Palanques comuns (2.20m e 10-12 cm de bitola) | E24: R$/unidade | F24: =(((I7/PiqEngord!D11)-2)+(((I8/PiqEngord!D11)-2)+((I9/PiqEngord!D11)-2))*1.05)*I6 ->  | G24: unidades | H24: =(F24+((I8/PiqEngord!D11)*PiqEngord!D8))*D24 -> 
C25: Palanques - Esticadores (3.50 m e 10-12 cm de bitola) | E25: R$/unidade | G25: un/piq | H25: =((F25*I6)+(PiqEngord!D8*2))*D25 -> 
C26: Arame liso galvanizado | E26: R$/metro | F26: =((((I8*PiqEngord!D12)+(I9*PiqEngord!D12))*I6)+(I8*PiqEngord!D12*PiqEngord!D8))/1000 ->  | G26: km | H26: =F26*1000*D26 -> 
C27: Arame fio de choque | E27: R$/metro | F27: =(((I8+I9)*I6)+(PiqEngord!D8*I8))/1000 ->  | G27: km | H27: =F27*1000*D27 -> 
C28: Cordoalha para curral | E28: R$/metro | F28: =(PiqEngord!I7*I6*PiqEngord!D13)/1000 ->  | G28: km | H28: =F28*1000*D28 -> 
C29: Cochos em concreto | E29: R$/metro | F29: =I6*I7 ->  | G29: unidades | H29: =D29*F29 -> 
C30: Bebedouros em concreto | E30: R$/unidade | G30: un/piq | H30: =D30*F30*I6 -> 
C31: Concretagem da área de cocho | E31: R$/m² | G31: metros linear | H31: =D31*F31*I6*I7 -> 
C32: Acessórios para abastecimento de água (canalização, bombas, juntas e etc) | E32: R$/animal | H32: =D32*D7*I6 -> 
C33: Reservatório para fornecimento de água aos bebedouros | E33: R$/unidade | G33: capacidade mil L | H33: =D33 -> 0
H35: =SUM(H20:H33) -> 

Sheet Lista_Bens
I1: Unidade | K1: Boi | M1: @ | O1: Diária Boi
C2: Unidades | D2: Valor Unitário | E2: vida útil (anos) | F2: Valor Residual (%) | G2: Valor Residual (R$) | H2: Taxa de Manutenção | I2: Manutenção | J2: Depreciação | K2: Manutenção | L2: Depreciação | M2: Manutenção | N2: Depreciação | O2: Manutenção | P2: Depreciação
C4: Máquinas
A5: 1 | E5: 0.1 | G5: =D5*F5 -> 0 | I5: =D5*H5*C5 -> 0 | J5: =((D5-G5)/E5)*C5 -> 0 | K5: =I5/(RelatZoot!$D$7*(1-RelatZoot!$D$15)) ->  | L5: =J5/(RelatZoot!$D$7*(1-RelatZoot!$D$15)) ->  | M5: =K5/RelatZoot!$D$19 ->  | N5: =L5/RelatZoot!$D$19 ->  | O5: =I5/RelatZoot!$H$17 ->  | P5: =J5/RelatZoot!$H$17 -> 
A6: 2 | B6: Pá carregadeira - Volvo - L60F | C6: 1 | D6: 350000 | E6: 6 | F6: 0.2 | G6: 70000 | H6: 0.1 | I6: 35000 | J6: 46666.66667 | K6: =I6/(RelatZoot!$D$7*(1-RelatZoot!$D$15)) ->  | L6: =J6/(RelatZoot!$D$7*(1-RelatZoot!$D$15)) ->  | M6: =K6/RelatZoot!$D$19 ->  | N6: =L6/RelatZoot!$D$19 ->  | O6: =I6/RelatZoot!$H$17 ->  | P6: =J6/RelatZoot!$H$17 -> 
A7: 3 | B7: Pá carregadeira - Komatsu - Wa200 | E7: 0.1 | G7: 0 | I7: 0 | J7: 0 | K7: =I7/(RelatZoot!$D$7*(1-RelatZoot!$D$15)) ->  | L7: =J7/(RelatZoot!$D$7*(1-RelatZoot!$D$15)) ->  | M7: =K7/RelatZoot!$D$19 ->  | N7: =L7/RelatZoot!$D$19 ->  | O7: =I7/RelatZoot!$H$17 ->  | P7: =J7/RelatZoot!$H$17 -> 
A8: 4 | B8: Pá carregadeira - New Holland - W130 | C8: 1 | D8: 310000 | E8: 6 | F8: 0.2 | G8: 62000 | H8: 0.1 | I8: 31000 | J8: 41333.33333 | K8: =I8/(RelatZoot!$D$7*(1-RelatZoot!$D$15)) ->  | L8: =J8/(RelatZoot!$D$7*(1-RelatZoot!$D$15)) ->  | M8: =K8/RelatZoot!$D$19 ->  | N8: =L8/RelatZoot!$D$19 ->  | O8: =I8/RelatZoot!$H$17 ->  | P8: =J8/RelatZoot!$H$17 -> 
A9: 5 | B9: Pá carregadeira - New Holland - 12D | C9: 1 | D9: 290000 | E9: 10 | F9: 0.2 | G9: 58000 | H9: 0.05 | I9: 14500 | J9: 23200 | K9: =I9/(RelatZoot!$D$7*(1-RelatZoot!$D$15)) ->  | L9: =J9/(RelatZoot!$D$7*(1-RelatZoot!$D$15)) ->  | M9: =K9/RelatZoot!$D$19 ->  | N9: =L9/RelatZoot!$D$19 ->  | O9: =I9/RelatZoot!$H$17 ->  | P9: =J9/RelatZoot!$H$17 -> 
A10: 6 | B10: Pá carregadeira - Caterpillar - 924k | C10: 1 | D10: 386400 | E10: 6 | F10: 0.2 | G10: 77280 | H10: 0.1 | I10: 38640 | J10: 51520 | K10: =I10/(RelatZoot!$D$7*(1-RelatZoot!$D$15)) ->  | L10: =J10/(RelatZoot!$D$7*(1-RelatZoot!$D$15)) ->  | M10: =K10/RelatZoot!$D$19 ->  | N10: =L10/RelatZoot!$D$19 ->  | O10: =I10/RelatZoot!$H$17 ->  | P10: =J10/RelatZoot!$H$17 -> 
A11: 7 | E11: 0.1 | G11: =D11*F11 -> 0 | I11: =D11*H11*C11 -> 0 | J11: =((D11-G11)/E11)*C11 -> 0 | K11: =I11/(RelatZoot!$D$7*(1-RelatZoot!$D$15)) ->  | L11: =J11/(RelatZoot!$D$7*(1-RelatZoot!$D$15)) ->  | M11: =K11/RelatZoot!$D$19 ->  | N11: =L11/RelatZoot!$D$19 ->  | O11: =I11/RelatZoot!$H$17 ->  | P11: =J11/RelatZoot!$H$17 -> 
A12: 8 | B12: Caminhão toco - F14000 | C12: 1 | D12: 210000 | E12: 10 | F12: 0.2 | G12: 42000 | H12: 0.1 | I12: 21000 | J12: 16800 | K12: =I12/(RelatZoot!$D$7*(1-RelatZoot!$D$15)) ->  | L12: =J12/(RelatZoot!$D$7*(1-RelatZoot!$D$15)) ->  | M12: =K12/RelatZoot!$D$19 ->  | N12: =L12/RelatZoot!$D$19 ->  | O12: =I12/RelatZoot!$H$17 ->  | P12: =J12/RelatZoot!$H$17 -> 
A13: 9 | B13: Caminhão trucado - Cargo - 2629 (290 cv) | C13: 2 | D13: 315000 | E13: 10 | F13: 0.2 | G13: 63000 | H13: 0.1 | I13: 63000 | J13: 50400 | K13: =I13/(RelatZoot!$D$7*(1-RelatZoot!$D$15)) ->  | L13: =J13/(RelatZoot!$D$7*(1-RelatZoot!$D$15)) ->  | M13: =K13/RelatZoot!$D$19 ->  | N13: =L13/RelatZoot!$D$19 ->  | O13: =I13/RelatZoot!$H$17 ->  | P13: =J13/RelatZoot!$H$17 -> 
A14: 10 | B14: Caminhão - Cargo - 1119 (bombeiro) | C14: 1 | D14: 0 | E14: 10 | F14: 0.2 | G14: 0 | H14: 0.1 | I14: 0 | J14: 0 | K14: =I14/(RelatZoot!$D$7*(1-RelatZoot!$D$15)) ->  | L14: =J14/(RelatZoot!$D$7*(1-RelatZoot!$D$15)) ->  | M14: =K14/RelatZoot!$D$19 ->  | N14: =L14/RelatZoot!$D$19 ->  | O14: =I14/RelatZoot!$H$17 ->  | P14: =J14/RelatZoot!$H$17 -> 
A15: 11 | B15: Caminhão vasculante - F14000 160 | C15: 1 | D15: 90000 | E15: 10 | F15: 0.2 | G15: 18000 | H15: 0.1 | I15: 9000 | J15: 7200 | K15: =I15/(RelatZoot!$D$7*(1-RelatZoot!$D$15)) ->  | L15: =J15/(RelatZoot!$D$7*(1-RelatZoot!$D$15)) ->  | M15: =K15/RelatZoot!$D$19 ->  | N15: =L15/RelatZoot!$D$19 ->  | O15: =I15/RelatZoot!$H$17 ->  | P15: =J15/RelatZoot!$H$17 -> 
A16: 12 | B16: Caminhão bombeiro - 140 cv | C16: 1 | D16: 80000 | E16: 10 | F16: 0.2 | G16: 16000 | H16: 0.1 | I16: 8000 | J16: 6400 | K16: =I16/(RelatZoot!$D$7*(1-RelatZoot!$D$15)) ->  | L16: =J16/(RelatZoot!$D$7*(1-RelatZoot!$D$15)) ->  | M16: =K16/RelatZoot!$D$19 ->  | N16: =L16/RelatZoot!$D$19 ->  | O16: =I16/RelatZoot!$H$17 ->  | P16: =J16/RelatZoot!$H$17 -> 
A17: 13 | B17: Caminhão - VW - 13190 - 160cv - carroceria para tanque de 8100 L | C17: 1 | D17: 160000 | E17: 10 | F17: 0.2 | G17: 32000 | H17: 0.1 | I17: 16000 | J17: 12800 | K17: =I17/(RelatZoot!$D$7*(1-RelatZoot!$D$15)) ->  | L17: =J17/(RelatZoot!$D$7*(1-RelatZoot!$D$15)) ->  | M17: =K17/RelatZoot!$D$19 ->  | N17: =L17/RelatZoot!$D$19 ->  | O17: =I17/RelatZoot!$H$17 ->  | P17: =J17/RelatZoot!$H$17 -> 
A18: 14 | B18: Caminhão - VW - 15190 - 190cv | C18: 1 | D18: 175000 | E18: 10 | F18: 0.2 | G18: 35000 | H18: 0.1 | I18: 17500 | J18: 14000 | K18: =I18/(RelatZoot!$D$7*(1-RelatZoot!$D$15)) ->  | L18: =J18/(RelatZoot!$D$7*(1-RelatZoot!$D$15)) ->  | M18: =K18/RelatZoot!$D$19 ->  | N18: =L18/RelatZoot!$D$19 ->  | O18: =I18/RelatZoot!$H$17 ->  | P18: =J18/RelatZoot!$H$17 -> 
A19: 15 | B19: Caminhão VW - 23230 - 225cv - para distribuir ração | C19: 1 | D19: 200000 | E19: 10 | F19: 0.2 | G19: 40000 | H19: 0.1 | I19: 20000 | J19: 16000 | K19: =I19/(RelatZoot!$D$7*(1-RelatZoot!$D$15)) ->  | L19: =J19/(RelatZoot!$D$7*(1-RelatZoot!$D$15)) ->  | M19: =K19/RelatZoot!$D$19 ->  | N19: =L19/RelatZoot!$D$19 ->  | O19: =I19/RelatZoot!$H$17 ->  | P19: =J19/RelatZoot!$H$17 -> 
A20: 16 | B20: Caminhão Mercedes - 1419/48 - 9500 kg carga útil - carroceria para tanque de 8100 L | C20: 1 | D20: 160000 | E20: 10 | F20: 0.2 | G20: 32000 | H20: 0.1 | I20: 16000 | J20: 12800 | K20: =I20/(RelatZoot!$D$7*(1-RelatZoot!$D$15)) ->  | L20: =J20/(RelatZoot!$D$7*(1-RelatZoot!$D$15)) ->  | M20: =K20/RelatZoot!$D$19 ->  | N20: =L20/RelatZoot!$D$19 ->  | O20: =I20/RelatZoot!$H$17 ->  | P20: =J20/RelatZoot!$H$17 -> 
A21: 17 | B21: Caminhão Mercedes - 1719/48 - 12230 kg carga útil | C21: 1 | D21: 175000 | E21: 10 | F21: 0.2 | G21: 35000 | H21: 0.1 | I21: 17500 | J21: 14000 | K21: =I21/(RelatZoot!$D$7*(1-RelatZoot!$D$15)) ->  | L21: =J21/(RelatZoot!$D$7*(1-RelatZoot!$D$15)) ->  | M21: =K21/RelatZoot!$D$19 ->  | N21: =L21/RelatZoot!$D$19 ->  | O21: =I21/RelatZoot!$H$17 ->  | P21: =J21/RelatZoot!$H$17 -> 
A22: 18 | B22: Caminhão Mercedes - 2426/48 - 17560 kg car útil | C22: 2 | D22: 220000 | E22: 10 | F22: 0.2 | G22: 44000 | H22: 0.1 | I22: 44000 | J22: 35200 | K22: =I22/(RelatZoot!$D$7*(1-RelatZoot!$D$15)) ->  | L22: =J22/(RelatZoot!$D$7*(1-RelatZoot!$D$15)) ->  | M22: =K22/RelatZoot!$D$19 ->  | N22: =L22/RelatZoot!$D$19 ->  | O22: =I22/RelatZoot!$H$17 ->  | P22: =J22/RelatZoot!$H$17 -> 
A23: 19 | B23: Caminhão Iveco - HD 90V18 - 9 toneladas e 180 cv | C23: 1 | D23: 108000 | E23: 10 | F23: 0.2 | G23: 21600 | H23: 0.1 | I23: 10800 | J23: 8640 | K23: =I23/(RelatZoot!$D$7*(1-RelatZoot!$D$15)) ->  | L23: =J23/(RelatZoot!$D$7*(1-RelatZoot!$D$15)) ->  | M23: =K23/RelatZoot!$D$19 ->  | N23: =L23/RelatZoot!$D$19 ->  | O23: =I23/RelatZoot!$H$17 ->  | P23: =J23/RelatZoot!$H$17 -> 
A24: 20 | B24: Caminhão Iveco - HD 130V18 - 13 toneladas e 180 cv | C24: 1 | D24: 135000 | E24: 10 | F24: 0.2 | G24: 27000 | H24: 0.1 | I24: 13500 | J24: 10800 | K24: =I24/(RelatZoot!$D$7*(1-RelatZoot!$D$15)) ->  | L24: =J24/(RelatZoot!$D$7*(1-RelatZoot!$D$15)) ->  | M24: =K24/RelatZoot!$D$19 ->  | N24: =L24/RelatZoot!$D$19 ->  | O24: =I24/RelatZoot!$H$17 ->  | P24: =J24/RelatZoot!$H$17 -> 
A25: 21 | B25: Caminhão Iveco - Tractor Attack 170E22 - (4x2) 17 toneladas e 220cv | C25: 1 | D25: 170000 | E25: 10 | F25: 0.2 | G25: 34000 | H25: 0.1 | I25: 17000 | J25: 13600 | K25: =I25/(RelatZoot!$D$7*(1-RelatZoot!$D$15)) ->  | L25: =J25/(RelatZoot!$D$7*(1-RelatZoot!$D$15)) ->  | M25: =K25/RelatZoot!$D$19 ->  | N25: =L25/RelatZoot!$D$19 ->  | O25: =I25/RelatZoot!$H$17 ->  | P25: =J25/RelatZoot!$H$17 -> 
A26: 22 | B26: Caminhão Iveco - Tractor Attack 240E22 - (6x2) 24 toneladas e 220cv | C26: 1 | D26: 185000 | E26: 10 | F26: 0.2 | G26: 37000 | H26: 0.1 | I26: 18500 | J26: 14800 | K26: =I26/(RelatZoot!$D$7*(1-RelatZoot!$D$15)) ->  | L26: =J26/(RelatZoot!$D$7*(1-RelatZoot!$D$15)) ->  | M26: =K26/RelatZoot!$D$19 ->  | N26: =L26/RelatZoot!$D$19 ->  | O26: =I26/RelatZoot!$H$17 ->  | P26: =J26/RelatZoot!$H$17 -> 
A27: 23 | E27: 0.1 | G27: 0 | I27: 0 | J27: 0 | K27: =I27/(RelatZoot!$D$7*(1-RelatZoot!$D$15)) ->  | L27: =J27/(RelatZoot!$D$7*(1-RelatZoot!$D$15)) ->  | M27: =K27/RelatZoot!$D$19 ->  | N27: =L27/RelatZoot!$D$19 ->  | O27: =I27/RelatZoot!$H$17 ->  | P27: =J27/RelatZoot!$H$17 -> 
A28: 24 | E28: 0.1 | G28: 0 | I28: 0 | J28: 0 | K28: =I28/(RelatZoot!$D$7*(1-RelatZoot!$D$15)) ->  | L28: =J28/(RelatZoot!$D$7*(1-RelatZoot!$D$15)) ->  | M28: =K28/RelatZoot!$D$19 ->  | N28: =L28/RelatZoot!$D$19 ->  | O28: =I28/RelatZoot!$H$17 ->  | P28: =J28/RelatZoot!$H$17 -> 
A29: 25 | E29: 0.1 | G29: 0 | I29: 0 | J29: 0 | K29: =I29/(RelatZoot!$D$7*(1-RelatZoot!$D$15)) ->  | L29: =J29/(RelatZoot!$D$7*(1-RelatZoot!$D$15)) ->  | M29: =K29/RelatZoot!$D$19 ->  | N29: =L29/RelatZoot!$D$19 ->  | O29: =I29/RelatZoot!$H$17 ->  | P29: =J29/RelatZoot!$H$17 -> 
A30: 26 | B30: Distribuidor de ração S22 - Siltomac - para caminhão toco | C30: 1 | D30: 95000 | E30: 10 | F30: 0.2 | G30: =D30*F30 -> 19000 | H30: 0.1 | I30: 9500 | J30: 7600 | K30: =I30/(RelatZoot!$D$7*(1-RelatZoot!$D$15)) ->  | L30: =J30/(RelatZoot!$D$7*(1-RelatZoot!$D$15)) ->  | M30: =K30/RelatZoot!$D$19 ->  | N30: =L30/RelatZoot!$D$19 ->  | O30: =I30/RelatZoot!$H$17 ->  | P30: =J30/RelatZoot!$H$17 -> 
A31: 27 | B31: Distribuidor de ração S25 - Siltomac - para caminhao trucado | C31: 2 | D31: 102000 | E31: 10 | F31: 0.2 | G31: 20400 | H31: 0.1 | I31: 20400 | J31: 16320 | K31: =I31/(RelatZoot!$D$7*(1-RelatZoot!$D$15)) ->  | L31: =J31/(RelatZoot!$D$7*(1-RelatZoot!$D$15)) ->  | M31: =K31/RelatZoot!$D$19 ->  | N31: =L31/RelatZoot!$D$19 ->  | O31: =I31/RelatZoot!$H$17 ->  | P31: =J31/RelatZoot!$H$17 -> 
A32: 28 | B32: Misturador e Distribuidor de ração - por tração - Siltomac - TS 13.5 | C32: 1 | D32: 158000 | E32: 10 | F32: 0.2 | G32: 31600 | H32: 0.1 | I32: 15800 | J32: 12640 | K32: =I32/(RelatZoot!$D$7*(1-RelatZoot!$D$15)) ->  | L32: =J32/(RelatZoot!$D$7*(1-RelatZoot!$D$15)) ->  | M32: =K32/RelatZoot!$D$19 ->  | N32: =L32/RelatZoot!$D$19 ->  | O32: =I32/RelatZoot!$H$17 ->  | P32: =J32/RelatZoot!$H$17 -> 
A33: 29 | B33: Misturador e Distribuidor de ração - Kuhn - Rio Audi 3120 - 8m³ | C33: 1 | D33: 143520 | E33: 10 | F33: 0.2 | G33: 28704 | H33: 0.1 | I33: 14352 | J33: 11481.6 | K33: =I33/(RelatZoot!$D$7*(1-RelatZoot!$D$15)) ->  | L33: =J33/(RelatZoot!$D$7*(1-RelatZoot!$D$15)) ->  | M33: =K33/RelatZoot!$D$19 ->  | N33: =L33/RelatZoot!$D$19 ->  | O33: =I33/RelatZoot!$H$17 ->  | P33: =J33/RelatZoot!$H$17 -> 
A34: 30 | B34: Misturador e Distribuidor de ração - Kuhn - Rio Audi 3130 - 12m³ | C34: 1 | D34: 172640 | E34: 10 | F34: 0.2 | G34: 34528 | H34: 0.1 | I34: 17264 | J34: 13811.2 | K34: =I34/(RelatZoot!$D$7*(1-RelatZoot!$D$15)) ->  | L34: =J34/(RelatZoot!$D$7*(1-RelatZoot!$D$15)) ->  | M34: =K34/RelatZoot!$D$19 ->  | N34: =L34/RelatZoot!$D$19 ->  | O34: =I34/RelatZoot!$H$17 ->  | P34: =J34/RelatZoot!$H$17 -> 
A35: 31 | B35: Misturador e Distribuidor de ração - Kuhn - Euromix 870 - 8m³ | C35: 1 | D35: 222560 | E35: 10 | F35: 0.2 | G35: 44512 | H35: 0.1 | I35: 22256 | J35: 17804.8 | K35: =I35/(RelatZoot!$D$7*(1-RelatZoot!$D$15)) ->  | L35: =J35/(RelatZoot!$D$7*(1-RelatZoot!$D$15)) ->  | M35: =K35/RelatZoot!$D$19 ->  | N35: =L35/RelatZoot!$D$19 ->  | O35: =I35/RelatZoot!$H$17 ->  | P35: =J35/RelatZoot!$H$17 -> 
A36: 32 | B36: Misturador e Distribuidor de ração - Kuhn Profile 1880 - 18m³ | C36: 1 | D36: 397280 | E36: 10 | F36: 0.2 | G36: 79456 | H36: 0.1 | I36: 39728 | J36: 31782.4 | K36: =I36/(RelatZoot!$D$7*(1-RelatZoot!$D$15)) ->  | L36: =J36/(RelatZoot!$D$7*(1-RelatZoot!$D$15)) ->  | M36: =K36/RelatZoot!$D$19 ->  | N36: =L36/RelatZoot!$D$19 ->  | O36: =I36/RelatZoot!$H$17 ->  | P36: =J36/RelatZoot!$H$17 -> 
A37: 33 | B37: Misturador e Distribuidor de ração - Casale - RX 85T - simples 9.5m³ | E37: 0.1 | I37: 0 | J37: 0 | K37: =I37/(RelatZoot!$D$7*(1-RelatZoot!$D$15)) ->  | L37: =J37/(RelatZoot!$D$7*(1-RelatZoot!$D$15)) ->  | M37: =K37/RelatZoot!$D$19 ->  | N37: =L37/RelatZoot!$D$19 ->  | O37: =I37/RelatZoot!$H$17 ->  | P37: =J37/RelatZoot!$H$17 -> 
A38: 34 | B38: Misturador e Distribuidor de ração - Casale - RX 110T - Totalmix - 11.8m³ | C38: 1 | D38: 187437 | E38: 10 | F38: 0.2 | G38: =D38*F38 -> 37487.4 | H38: 0.1 | I38: 18743.7 | J38: 14994.96 | K38: =I38/(RelatZoot!$D$7*(1-RelatZoot!$D$15)) ->  | L38: =J38/(RelatZoot!$D$7*(1-RelatZoot!$D$15)) ->  | M38: =K38/RelatZoot!$D$19 ->  | N38: =L38/RelatZoot!$D$19 ->  | O38: =I38/RelatZoot!$H$17 ->  | P38: =J38/RelatZoot!$H$17 -> 
A39: 35 | B39: Misturador e Distribuidor de ração - Casale - RX 150T - 16m³ | E39: 0.1 | I39: 0 | J39: 0 | K39: =I39/(RelatZoot!$D$7*(1-RelatZoot!$D$15)) ->  | L39: =J39/(RelatZoot!$D$7*(1-RelatZoot!$D$15)) ->  | M39: =K39/RelatZoot!$D$19 ->  | N39: =L39/RelatZoot!$D$19 ->  | O39: =I39/RelatZoot!$H$17 ->  | P39: =J39/RelatZoot!$H$17 -> 
A40: 36 | B40: Misturador e Distribuidor de ração - Casale - RX 175T - Totalmix - 19m³ | C40: 1 | D40: 344457 | E40: 10 | F40: 0.2 | G40: =D40*F40 -> 68891.4 | H40: 0.1 | I40: 34445.7 | J40: 27556.56 | K40: =I40/(RelatZoot!$D$7*(1-RelatZoot!$D$15)) ->  | L40: =J40/(RelatZoot!$D$7*(1-RelatZoot!$D$15)) ->  | M40: =K40/RelatZoot!$D$19 ->  | N40: =L40/RelatZoot!$D$19 ->  | O40: =I40/RelatZoot!$H$17 ->  | P40: =J40/RelatZoot!$H$17 -> 
A41: 37 | B41: Misturador e Distribuidor de ração - Casale - RX 200C - 21.5m³ Mecânica | C41: 1 | D41: 368633 | E41: 10 | F41: 0.2 | G41: 73726.6 | H41: 0.1 | I41: 36863.3 | J41: 29490.64 | K41: =I41/(RelatZoot!$D$7*(1-RelatZoot!$D$15)) ->  | L41: =J41/(RelatZoot!$D$7*(1-RelatZoot!$D$15)) ->  | M41: =K41/RelatZoot!$D$19 ->  | N41: =L41/RelatZoot!$D$19 ->  | O41: =I41/RelatZoot!$H$17 ->  | P41: =J41/RelatZoot!$H$17 -> 
A42: 38 | B42: Misturador e Distribuidor de ração - Casale - RX 200C - 21.5m³ Hidrostática | C42: 1 | D42: 438244 | E42: 10 | F42: 0.2 | G42: 87648.8 | H42: 0.1 | I42: 43824.4 | J42: 35059.52 | K42: =I42/(RelatZoot!$D$7*(1-RelatZoot!$D$15)) ->  | L42: =J42/(RelatZoot!$D$7*(1-RelatZoot!$D$15)) ->  | M42: =K42/RelatZoot!$D$19 ->  | N42: =L42/RelatZoot!$D$19 ->  | O42: =I42/RelatZoot!$H$17 ->  | P42: =J42/RelatZoot!$H$17 -> 
A43: 39 | E43: 0.1 | I43: 0 | J43: 0 | K43: =I43/(RelatZoot!$D$7*(1-RelatZoot!$D$15)) ->  | L43: =J43/(RelatZoot!$D$7*(1-RelatZoot!$D$15)) ->  | M43: =K43/RelatZoot!$D$19 ->  | N43: =L43/RelatZoot!$D$19 ->  | O43: =I43/RelatZoot!$H$17 ->  | P43: =J43/RelatZoot!$H$17 -> 
A44: 40 | E44: 0.1 | G44: 0 | H44: 0.1 | I44: 0 | J44: 0 | K44: =I44/(RelatZoot!$D$7*(1-RelatZoot!$D$15)) ->  | L44: =J44/(RelatZoot!$D$7*(1-RelatZoot!$D$15)) ->  | M44: =K44/RelatZoot!$D$19 ->  | N44: =L44/RelatZoot!$D$19 ->  | O44: =I44/RelatZoot!$H$17 ->  | P44: =J44/RelatZoot!$H$17 -> 
A45: 41 | E45: 0.1 | G45: 0 | I45: 0 | J45: 0 | K45: =I45/(RelatZoot!$D$7*(1-RelatZoot!$D$15)) ->  | L45: =J45/(RelatZoot!$D$7*(1-RelatZoot!$D$15)) ->  | M45: =K45/RelatZoot!$D$19 ->  | N45: =L45/RelatZoot!$D$19 ->  | O45: =I45/RelatZoot!$H$17 ->  | P45: =J45/RelatZoot!$H$17 -> 
A46: 42 | B46: Trator Valtra BM 100 - 106 cv | C46: 1 | D46: 141700 | E46: 10 | F46: 0.2 | G46: =D46*F46 -> 28340 | H46: 0.1 | I46: 14170 | J46: 11336 | K46: =I46/(RelatZoot!$D$7*(1-RelatZoot!$D$15)) ->  | L46: =J46/(RelatZoot!$D$7*(1-RelatZoot!$D$15)) ->  | M46: =K46/RelatZoot!$D$19 ->  | N46: =L46/RelatZoot!$D$19 ->  | O46: =I46/RelatZoot!$H$17 ->  | P46: =J46/RelatZoot!$H$17 -> 
A47: 43 | B47: Trator Valtra A750 - 78 cv | C47: 1 | D47: 100000 | E47: 10 | F47: 0.2 | G47: 20000 | H47: 0.1 | I47: 10000 | J47: 8000 | K47: =I47/(RelatZoot!$D$7*(1-RelatZoot!$D$15)) ->  | L47: =J47/(RelatZoot!$D$7*(1-RelatZoot!$D$15)) ->  | M47: =K47/RelatZoot!$D$19 ->  | N47: =L47/RelatZoot!$D$19 ->  | O47: =I47/RelatZoot!$H$17 ->  | P47: =J47/RelatZoot!$H$17 -> 
A48: 44 | B48: Trator Case iH - Farmall - 130 - 131cv - Cabinado | C48: 1 | D48: 178000 | E48: 10 | F48: 0.2 | G48: 35600 | H48: 0.1 | I48: 17800 | J48: 14240 | K48: =I48/(RelatZoot!$D$7*(1-RelatZoot!$D$15)) ->  | L48: =J48/(RelatZoot!$D$7*(1-RelatZoot!$D$15)) ->  | M48: =K48/RelatZoot!$D$19 ->  | N48: =L48/RelatZoot!$D$19 ->  | O48: =I48/RelatZoot!$H$17 ->  | P48: =J48/RelatZoot!$H$17 -> 
A49: 45 | B49: Trator Case iH - Farmall - 95 - 104cv - Cabinado | C49: 1 | D49: 135000 | E49: 10 | F49: 0.2 | G49: 27000 | H49: 0.1 | I49: 13500 | J49: 10800 | K49: =I49/(RelatZoot!$D$7*(1-RelatZoot!$D$15)) ->  | L49: =J49/(RelatZoot!$D$7*(1-RelatZoot!$D$15)) ->  | M49: =K49/RelatZoot!$D$19 ->  | N49: =L49/RelatZoot!$D$19 ->  | O49: =I49/RelatZoot!$H$17 ->  | P49: =J49/RelatZoot!$H$17 -> 
A50: 46 | B50: Trator John Deere - 6110J - 110cv | C50: 1 | D50: 176000 | E50: 10 | F50: 0.2 | G50: 35200 | H50: 0.1 | I50: 17600 | J50: 14080 | K50: =I50/(RelatZoot!$D$7*(1-RelatZoot!$D$15)) ->  | L50: =J50/(RelatZoot!$D$7*(1-RelatZoot!$D$15)) ->  | M50: =K50/RelatZoot!$D$19 ->  | N50: =L50/RelatZoot!$D$19 ->  | O50: =I50/RelatZoot!$H$17 ->  | P50: =J50/RelatZoot!$H$17 -> 
A51: 47 | B51: Trator John Deere - 5085E - cabinado - 85cv | C51: 1 | D51: 128000 | E51: 10 | F51: 0.2 | G51: 25600 | H51: 0.1 | I51: 12800 | J51: 10240 | K51: =I51/(RelatZoot!$D$7*(1-RelatZoot!$D$15)) ->  | L51: =J51/(RelatZoot!$D$7*(1-RelatZoot!$D$15)) ->  | M51: =K51/RelatZoot!$D$19 ->  | N51: =L51/RelatZoot!$D$19 ->  | O51: =I51/RelatZoot!$H$17 ->  | P51: =J51/RelatZoot!$H$17 -> 
A52: 48 | B52: Trator John Deere - 5065E - 65cv | C52: 1 | D52: 80000 | E52: 10 | F52: 0.2 | G52: 16000 | H52: 0.1 | I52: 8000 | J52: 6400 | K52: =I52/(RelatZoot!$D$7*(1-RelatZoot!$D$15)) ->  | L52: =J52/(RelatZoot!$D$7*(1-RelatZoot!$D$15)) ->  | M52: =K52/RelatZoot!$D$19 ->  | N52: =L52/RelatZoot!$D$19 ->  | O52: =I52/RelatZoot!$H$17 ->  | P52: =J52/RelatZoot!$H$17 -> 
A53: 49 | B53: Trator Massey Ferguson - 4275 - 75cv - Traçado e sem redutor e capota | C53: 1 | D53: 106000 | E53: 10 | F53: 0.2 | G53: 21200 | H53: 0.1 | I53: 10600 | J53: 8480 | K53: =I53/(RelatZoot!$D$7*(1-RelatZoot!$D$15)) ->  | L53: =J53/(RelatZoot!$D$7*(1-RelatZoot!$D$15)) ->  | M53: =K53/RelatZoot!$D$19 ->  | N53: =L53/RelatZoot!$D$19 ->  | O53: =I53/RelatZoot!$H$17 ->  | P53: =J53/RelatZoot!$H$17 -> 
A54: 50 | B54: Trator Massey Ferguson - 250X - 50cv - manutenção de cerca | C54: 1 | D54: 70000 | E54: 10 | F54: 0.2 | G54: 14000 | H54: 0.1 | I54: 7000 | J54: 5600 | K54: =I54/(RelatZoot!$D$7*(1-RelatZoot!$D$15)) ->  | L54: =J54/(RelatZoot!$D$7*(1-RelatZoot!$D$15)) ->  | M54: =K54/RelatZoot!$D$19 ->  | N54: =L54/RelatZoot!$D$19 ->  | O54: =I54/RelatZoot!$H$17 ->  | P54: =J54/RelatZoot!$H$17 -> 
A55: 51 | B55: Trator New Holland - TL 95E - Cabinado - 105cv | C55: 1 | D55: 130000 | E55: 10 | F55: 0.2 | G55: 26000 | H55: 0.1 | I55: 13000 | J55: 10400 | K55: =I55/(RelatZoot!$D$7*(1-RelatZoot!$D$15)) ->  | L55: =J55/(RelatZoot!$D$7*(1-RelatZoot!$D$15)) ->  | M55: =K55/RelatZoot!$D$19 ->  | N55: =L55/RelatZoot!$D$19 ->  | O55: =I55/RelatZoot!$H$17 ->  | P55: =J55/RelatZoot!$H$17 -> 
A56: 52 | E56: 0.1 | G56: 0 | I56: 0 | J56: 0 | K56: =I56/(RelatZoot!$D$7*(1-RelatZoot!$D$15)) ->  | L56: =J56/(RelatZoot!$D$7*(1-RelatZoot!$D$15)) ->  | M56: =K56/RelatZoot!$D$19 ->  | N56: =L56/RelatZoot!$D$19 ->  | O56: =I56/RelatZoot!$H$17 ->  | P56: =J56/RelatZoot!$H$17 -> 
A57: 53 | E57: 0.1 | G57: 0 | I57: 0 | J57: 0 | K57: =I57/(RelatZoot!$D$7*(1-RelatZoot!$D$15)) ->  | L57: =J57/(RelatZoot!$D$7*(1-RelatZoot!$D$15)) ->  | M57: =K57/RelatZoot!$D$19 ->  | N57: =L57/RelatZoot!$D$19 ->  | O57: =I57/RelatZoot!$H$17 ->  | P57: =J57/RelatZoot!$H$17 -> 
A58: 54 | B58: Plaina de Raspagagem - Star Plan 3000 | C58: 1 | D58: 32000 | E58: 10 | F58: 0.2 | G58: 6400 | H58: 0.05 | I58: 1600 | J58: 2560 | K58: =I58/(RelatZoot!$D$7*(1-RelatZoot!$D$15)) ->  | L58: =J58/(RelatZoot!$D$7*(1-RelatZoot!$D$15)) ->  | M58: =K58/RelatZoot!$D$19 ->  | N58: =L58/RelatZoot!$D$19 ->  | O58: =I58/RelatZoot!$H$17 ->  | P58: =J58/RelatZoot!$H$17 -> 
A59: 55 | E59: 0.1 | G59: 0 | I59: 0 | J59: 0 | K59: =I59/(RelatZoot!$D$7*(1-RelatZoot!$D$15)) ->  | L59: =J59/(RelatZoot!$D$7*(1-RelatZoot!$D$15)) ->  | M59: =K59/RelatZoot!$D$19 ->  | N59: =L59/RelatZoot!$D$19 ->  | O59: =I59/RelatZoot!$H$17 ->  | P59: =J59/RelatZoot!$H$17 -> 
A60: 56 | E60: 0.1 | G60: 0 | I60: 0 | J60: 0 | K60: =I60/(RelatZoot!$D$7*(1-RelatZoot!$D$15)) ->  | L60: =J60/(RelatZoot!$D$7*(1-RelatZoot!$D$15)) ->  | M60: =K60/RelatZoot!$D$19 ->  | N60: =L60/RelatZoot!$D$19 ->  | O60: =I60/RelatZoot!$H$17 ->  | P60: =J60/RelatZoot!$H$17 -> 
A61: 57 | E61: 0.1 | G61: 0 | I61: 0 | J61: 0 | K61: =I61/(RelatZoot!$D$7*(1-RelatZoot!$D$15)) ->  | L61: =J61/(RelatZoot!$D$7*(1-RelatZoot!$D$15)) ->  | M61: =K61/RelatZoot!$D$19 ->  | N61: =L61/RelatZoot!$D$19 ->  | O61: =I61/RelatZoot!$H$17 ->  | P61: =J61/RelatZoot!$H$17 -> 
A62: 58 | E62: 0.1 | G62: 0 | I62: 0 | J62: 0 | K62: =I62/(RelatZoot!$D$7*(1-RelatZoot!$D$15)) ->  | L62: =J62/(RelatZoot!$D$7*(1-RelatZoot!$D$15)) ->  | M62: =K62/RelatZoot!$D$19 ->  | N62: =L62/RelatZoot!$D$19 ->  | O62: =I62/RelatZoot!$H$17 ->  | P62: =J62/RelatZoot!$H$17 -> 
A63: 59 | E63: 0.1 | G63: 0 | I63: 0 | J63: 0 | K63: =I63/(RelatZoot!$D$7*(1-RelatZoot!$D$15)) ->  | L63: =J63/(RelatZoot!$D$7*(1-RelatZoot!$D$15)) ->  | M63: =K63/RelatZoot!$D$19 ->  | N63: =L63/RelatZoot!$D$19 ->  | O63: =I63/RelatZoot!$H$17 ->  | P63: =J63/RelatZoot!$H$17 -> 
A64: 60 | E64: 0.1 | G64: 0 | I64: 0 | J64: 0 | K64: =I64/(RelatZoot!$D$7*(1-RelatZoot!$D$15)) ->  | L64: =J64/(RelatZoot!$D$7*(1-RelatZoot!$D$15)) ->  | M64: =K64/RelatZoot!$D$19 ->  | N64: =L64/RelatZoot!$D$19 ->  | O64: =I64/RelatZoot!$H$17 ->  | P64: =J64/RelatZoot!$H$17 -> 
A65: 61 | E65: 0.1 | G65: 0 | I65: 0 | J65: 0 | K65: =I65/(RelatZoot!$D$7*(1-RelatZoot!$D$15)) ->  | L65: =J65/(RelatZoot!$D$7*(1-RelatZoot!$D$15)) ->  | M65: =K65/RelatZoot!$D$19 ->  | N65: =L65/RelatZoot!$D$19 ->  | O65: =I65/RelatZoot!$H$17 ->  | P65: =J65/RelatZoot!$H$17 -> 
A66: 62 | E66: 0.1 | G66: 0 | I66: 0 | J66: 0 | K66: =I66/(RelatZoot!$D$7*(1-RelatZoot!$D$15)) ->  | L66: =J66/(RelatZoot!$D$7*(1-RelatZoot!$D$15)) ->  | M66: =K66/RelatZoot!$D$19 ->  | N66: =L66/RelatZoot!$D$19 ->  | O66: =I66/RelatZoot!$H$17 ->  | P66: =J66/RelatZoot!$H$17 -> 
A67: 63 | E67: 0.1 | G67: 0 | I67: 0 | J67: 0 | K67: =I67/(RelatZoot!$D$7*(1-RelatZoot!$D$15)) ->  | L67: =J67/(RelatZoot!$D$7*(1-RelatZoot!$D$15)) ->  | M67: =K67/RelatZoot!$D$19 ->  | N67: =L67/RelatZoot!$D$19 ->  | O67: =I67/RelatZoot!$H$17 ->  | P67: =J67/RelatZoot!$H$17 -> 
C68: Equipamentos
A69: 1 | E69: 0.1 | G69: =D69*F69 -> 0 | I69: =D69*H69*C69 -> 0 | J69: =((D69-G69)/E69)*C69 -> 0 | K69: =I69/(RelatZoot!$D$7*(1-RelatZoot!$D$15)) ->  | L69: =J69/(RelatZoot!$D$7*(1-RelatZoot!$D$15)) ->  | M69: =K69/RelatZoot!$D$19 ->  | N69: =L69/RelatZoot!$D$19 ->  | O69: =I69/RelatZoot!$H$17 ->  | P69: =J69/RelatZoot!$H$17 -> 
A70: 2 | B70: Misturador estacionário - Kuhn - REEL Commercial RC 270 - 20 m³ motor 75cv | C70: 1 | D70: 464880 | E70: 10 | F70: 0.1 | G70: =D70*F70 -> 46488 | H70: 0.1 | I70: =D70*H70*C70 -> 46488 | J70: =((D70-G70)/E70)*C70 -> 41839.2 | K70: =I70/(RelatZoot!$D$7*(1-RelatZoot!$D$15)) ->  | L70: =J70/(RelatZoot!$D$7*(1-RelatZoot!$D$15)) ->  | M70: =K70/RelatZoot!$D$19 ->  | N70: =L70/RelatZoot!$D$19 ->  | O70: =I70/RelatZoot!$H$17 ->  | P70: =J70/RelatZoot!$H$17 -> 
A71: 3 | B71: Misturador estacionário - Siltomac - S 19.5 | C71: 1 | D71: 360700 | E71: 10 | F71: 0.1 | H71: 0.1 | I71: 36070 | J71: 36070 | K71: =I71/(RelatZoot!$D$7*(1-RelatZoot!$D$15)) ->  | L71: =J71/(RelatZoot!$D$7*(1-RelatZoot!$D$15)) ->  | M71: =K71/RelatZoot!$D$19 ->  | N71: =L71/RelatZoot!$D$19 ->  | O71: =I71/RelatZoot!$H$17 ->  | P71: =J71/RelatZoot!$H$17 -> 
A72: 4 | B72: Misturador estacionário - Casale RX 200E 21.5m³ | E72: 0.1 | I72: 0 | J72: 0 | K72: =I72/(RelatZoot!$D$7*(1-RelatZoot!$D$15)) ->  | L72: =J72/(RelatZoot!$D$7*(1-RelatZoot!$D$15)) ->  | M72: =K72/RelatZoot!$D$19 ->  | N72: =L72/RelatZoot!$D$19 ->  | O72: =I72/RelatZoot!$H$17 ->  | P72: =J72/RelatZoot!$H$17 -> 
A73: 5 | E73: 0.1 | I73: 0 | J73: 0 | K73: =I73/(RelatZoot!$D$7*(1-RelatZoot!$D$15)) ->  | L73: =J73/(RelatZoot!$D$7*(1-RelatZoot!$D$15)) ->  | M73: =K73/RelatZoot!$D$19 ->  | N73: =L73/RelatZoot!$D$19 ->  | O73: =I73/RelatZoot!$H$17 ->  | P73: =J73/RelatZoot!$H$17 -> 
A74: 6 | E74: 0.1 | G74: =D74*F74 -> 0 | I74: 0 | J74: 0 | K74: =I74/(RelatZoot!$D$7*(1-RelatZoot!$D$15)) ->  | L74: =J74/(RelatZoot!$D$7*(1-RelatZoot!$D$15)) ->  | M74: =K74/RelatZoot!$D$19 ->  | N74: =L74/RelatZoot!$D$19 ->  | O74: =I74/RelatZoot!$H$17 ->  | P74: =J74/RelatZoot!$H$17 -> 
A75: 7 | B75: Esteira - (misturador -> caminhão) - Helo Máquinas - TMHEV 8 | C75: 1 | D75: 32000 | E75: 5 | F75: 0.2 | G75: 6400 | H75: 0.05 | I75: 1600 | J75: 5120 | K75: =I75/(RelatZoot!$D$7*(1-RelatZoot!$D$15)) ->  | L75: =J75/(RelatZoot!$D$7*(1-RelatZoot!$D$15)) ->  | M75: =K75/RelatZoot!$D$19 ->  | N75: =L75/RelatZoot!$D$19 ->  | O75: =I75/RelatZoot!$H$17 ->  | P75: =J75/RelatZoot!$H$17 -> 
A76: 8 | B76: Balança / Digi Star - XR4600 | C76: 1 | D76: 16000 | E76: 5 | F76: 0.1 | H76: 0.05 | I76: 800 | J76: 3200 | K76: =I76/(RelatZoot!$D$7*(1-RelatZoot!$D$15)) ->  | L76: =J76/(RelatZoot!$D$7*(1-RelatZoot!$D$15)) ->  | M76: =K76/RelatZoot!$D$19 ->  | N76: =L76/RelatZoot!$D$19 ->  | O76: =I76/RelatZoot!$H$17 ->  | P76: =J76/RelatZoot!$H$17 -> 
A77: 9 | E77: 0.1 | I77: 0 | J77: 0 | K77: =I77/(RelatZoot!$D$7*(1-RelatZoot!$D$15)) ->  | L77: =J77/(RelatZoot!$D$7*(1-RelatZoot!$D$15)) ->  | M77: =K77/RelatZoot!$D$19 ->  | N77: =L77/RelatZoot!$D$19 ->  | O77: =I77/RelatZoot!$H$17 ->  | P77: =J77/RelatZoot!$H$17 -> 
A78: 10 | B78: Moinho de rolo - Mendes & Mendo | C78: 1 | D78: 80000 | E78: 5 | F78: 0.2 | G78: 16000 | H78: 0.2 | I78: 16000 | J78: 12800 | K78: =I78/(RelatZoot!$D$7*(1-RelatZoot!$D$15)) ->  | L78: =J78/(RelatZoot!$D$7*(1-RelatZoot!$D$15)) ->  | M78: =K78/RelatZoot!$D$19 ->  | N78: =L78/RelatZoot!$D$19 ->  | O78: =I78/RelatZoot!$H$17 ->  | P78: =J78/RelatZoot!$H$17 -> 
A79: 11 | B79: Reservatórios de melaço For Lev - 4 tanques - 15 mil L (NBR 15.682) | C79: 1 | D79: 24000 | E79: 5 | F79: 0.2 | G79: 4800 | H79: 0.05 | I79: 1200 | J79: 3840 | K79: =I79/(RelatZoot!$D$7*(1-RelatZoot!$D$15)) ->  | L79: =J79/(RelatZoot!$D$7*(1-RelatZoot!$D$15)) ->  | M79: =K79/RelatZoot!$D$19 ->  | N79: =L79/RelatZoot!$D$19 ->  | O79: =I79/RelatZoot!$H$17 ->  | P79: =J79/RelatZoot!$H$17 -> 
A80: 12 | B80: Transformador 150 kwa | C80: 1 | D80: 25000 | E80: 5 | F80: 0 | G80: 0 | H80: 0.1 | I80: 2500 | J80: 5000 | K80: =I80/(RelatZoot!$D$7*(1-RelatZoot!$D$15)) ->  | L80: =J80/(RelatZoot!$D$7*(1-RelatZoot!$D$15)) ->  | M80: =K80/RelatZoot!$D$19 ->  | N80: =L80/RelatZoot!$D$19 ->  | O80: =I80/RelatZoot!$H$17 ->  | P80: =J80/RelatZoot!$H$17 -> 
A81: 13 | B81: Gerador - estacionário 150 kWa | C81: 1 | D81: 150000 | E81: 15 | F81: 0.2 | G81: 30000 | H81: 0.1 | I81: 15000 | J81: 8000 | K81: =I81/(RelatZoot!$D$7*(1-RelatZoot!$D$15)) ->  | L81: =J81/(RelatZoot!$D$7*(1-RelatZoot!$D$15)) ->  | M81: =K81/RelatZoot!$D$19 ->  | N81: =L81/RelatZoot!$D$19 ->  | O81: =I81/RelatZoot!$H$17 ->  | P81: =J81/RelatZoot!$H$17 -> 
A82: 14 | E82: 0.1 | G82: 0 | I82: 0 | J82: 0 | K82: =I82/(RelatZoot!$D$7*(1-RelatZoot!$D$15)) ->  | L82: =J82/(RelatZoot!$D$7*(1-RelatZoot!$D$15)) ->  | M82: =K82/RelatZoot!$D$19 ->  | N82: =L82/RelatZoot!$D$19 ->  | O82: =I82/RelatZoot!$H$17 ->  | P82: =J82/RelatZoot!$H$17 -> 
A83: 15 | B83: Brete - Silencer - hidráulico | C83: 1 | D83: 100000 | E83: 10 | F83: 0.2 | G83: 20000 | H83: 0.1 | I83: 10000 | J83: 8000 | K83: =I83/(RelatZoot!$D$7*(1-RelatZoot!$D$15)) ->  | L83: =J83/(RelatZoot!$D$7*(1-RelatZoot!$D$15)) ->  | M83: =K83/RelatZoot!$D$19 ->  | N83: =L83/RelatZoot!$D$19 ->  | O83: =I83/RelatZoot!$H$17 ->  | P83: =J83/RelatZoot!$H$17 -> 
A84: 16 | B84: Brete - Backhouser (hidráulico com parede móvel) | C84: 1 | D84: 97000 | E84: 10 | F84: 0.2 | G84: 19400 | H84: 0.1 | I84: 9700 | J84: 7760 | K84: =I84/(RelatZoot!$D$7*(1-RelatZoot!$D$15)) ->  | L84: =J84/(RelatZoot!$D$7*(1-RelatZoot!$D$15)) ->  | M84: =K84/RelatZoot!$D$19 ->  | N84: =L84/RelatZoot!$D$19 ->  | O84: =I84/RelatZoot!$H$17 ->  | P84: =J84/RelatZoot!$H$17 -> 
A85: 17 | B85: Brete - Kontentor - (Hidráulico com controle) | E85: 0.1 | G85: 0 | I85: 0 | J85: 0 | K85: =I85/(RelatZoot!$D$7*(1-RelatZoot!$D$15)) ->  | L85: =J85/(RelatZoot!$D$7*(1-RelatZoot!$D$15)) ->  | M85: =K85/RelatZoot!$D$19 ->  | N85: =L85/RelatZoot!$D$19 ->  | O85: =I85/RelatZoot!$H$17 ->  | P85: =J85/RelatZoot!$H$17 -> 
A86: 18 | B86: Brete - Romancini - (Pneumático) | E86: 0.1 | I86: 0 | J86: 0 | K86: =I86/(RelatZoot!$D$7*(1-RelatZoot!$D$15)) ->  | L86: =J86/(RelatZoot!$D$7*(1-RelatZoot!$D$15)) ->  | M86: =K86/RelatZoot!$D$19 ->  | N86: =L86/RelatZoot!$D$19 ->  | O86: =I86/RelatZoot!$H$17 ->  | P86: =J86/RelatZoot!$H$17 -> 
A87: 19 | B87: Balança do tronco de contenção - Tru-Test XR-5000 + XHD | C87: 1 | D87: 32258 | E87: 5 | F87: 0.1 | H87: 0.05 | I87: 1612.9 | J87: 6451.6 | K87: =I87/(RelatZoot!$D$7*(1-RelatZoot!$D$15)) ->  | L87: =J87/(RelatZoot!$D$7*(1-RelatZoot!$D$15)) ->  | M87: =K87/RelatZoot!$D$19 ->  | N87: =L87/RelatZoot!$D$19 ->  | O87: =I87/RelatZoot!$H$17 ->  | P87: =J87/RelatZoot!$H$17 -> 
A88: 20 | E88: 0.1 | I88: 0 | J88: 0 | K88: =I88/(RelatZoot!$D$7*(1-RelatZoot!$D$15)) ->  | L88: =J88/(RelatZoot!$D$7*(1-RelatZoot!$D$15)) ->  | M88: =K88/RelatZoot!$D$19 ->  | N88: =L88/RelatZoot!$D$19 ->  | O88: =I88/RelatZoot!$H$17 ->  | P88: =J88/RelatZoot!$H$17 -> 
A89: 21 | E89: 0.1 | I89: 0 | J89: 0 | K89: =I89/(RelatZoot!$D$7*(1-RelatZoot!$D$15)) ->  | L89: =J89/(RelatZoot!$D$7*(1-RelatZoot!$D$15)) ->  | M89: =K89/RelatZoot!$D$19 ->  | N89: =L89/RelatZoot!$D$19 ->  | O89: =I89/RelatZoot!$H$17 ->  | P89: =J89/RelatZoot!$H$17 -> 
A90: 22 | B90: Broca perfuradora de solo | C90: 1 | D90: 2000 | E90: 5 | F90: 0 | G90: 0 | H90: 0.1 | I90: 200 | J90: 400 | K90: =I90/(RelatZoot!$D$7*(1-RelatZoot!$D$15)) ->  | L90: =J90/(RelatZoot!$D$7*(1-RelatZoot!$D$15)) ->  | M90: =K90/RelatZoot!$D$19 ->  | N90: =L90/RelatZoot!$D$19 ->  | O90: =I90/RelatZoot!$H$17 ->  | P90: =J90/RelatZoot!$H$17 -> 
A91: 23 | B91: Carreta de 4 rodas | C91: 1 | D91: 4000 | E91: 10 | F91: 0.2 | G91: 800 | H91: 0.1 | I91: =D91*H91*C91 -> 400 | J91: =((D91-G91)/E91)*C91 -> 320 | K91: =I91/(RelatZoot!$D$7*(1-RelatZoot!$D$15)) ->  | L91: =J91/(RelatZoot!$D$7*(1-RelatZoot!$D$15)) ->  | M91: =K91/RelatZoot!$D$19 ->  | N91: =L91/RelatZoot!$D$19 ->  | O91: =I91/RelatZoot!$H$17 ->  | P91: =J91/RelatZoot!$H$17 -> 
A92: 24 | B92: Balança Rodoviária 25m - 100 toneladas | C92: 1 | D92: 86300 | E92: 15 | F92: 0.2 | G92: 17260 | H92: 0.1 | I92: 8630 | J92: 4602.666667 | K92: =I92/(RelatZoot!$D$7*(1-RelatZoot!$D$15)) ->  | L92: =J92/(RelatZoot!$D$7*(1-RelatZoot!$D$15)) ->  | M92: =K92/RelatZoot!$D$19 ->  | N92: =L92/RelatZoot!$D$19 ->  | O92: =I92/RelatZoot!$H$17 ->  | P92: =J92/RelatZoot!$H$17 -> 
A93: 25 | E93: 0.1 | G93: 0 | I93: 0 | J93: 0 | K93: =I93/(RelatZoot!$D$7*(1-RelatZoot!$D$15)) ->  | L93: =J93/(RelatZoot!$D$7*(1-RelatZoot!$D$15)) ->  | M93: =K93/RelatZoot!$D$19 ->  | N93: =L93/RelatZoot!$D$19 ->  | O93: =I93/RelatZoot!$H$17 ->  | P93: =J93/RelatZoot!$H$17 -> 
A94: 26 | B94: Outras Ferramentas (pá, enchada, furadeira, e demais itens de oficina) | C94: 1 | D94: 15000 | E94: 5 | F94: 0 | G94: 0 | H94: 0 | I94: 0 | J94: 3000 | K94: =I94/(RelatZoot!$D$7*(1-RelatZoot!$D$15)) ->  | L94: =J94/(RelatZoot!$D$7*(1-RelatZoot!$D$15)) ->  | M94: =K94/RelatZoot!$D$19 ->  | N94: =L94/RelatZoot!$D$19 ->  | O94: =I94/RelatZoot!$H$17 ->  | P94: =J94/RelatZoot!$H$17 -> 
A95: 27 | E95: 0.1 | G95: 0 | I95: 0 | J95: 0 | K95: =I95/(RelatZoot!$D$7*(1-RelatZoot!$D$15)) ->  | L95: =J95/(RelatZoot!$D$7*(1-RelatZoot!$D$15)) ->  | M95: =K95/RelatZoot!$D$19 ->  | N95: =L95/RelatZoot!$D$19 ->  | O95: =I95/RelatZoot!$H$17 ->  | P95: =J95/RelatZoot!$H$17 -> 
A96: 28 | B96: Leitor do sistema de rastreabilidade | C96: 1 | D96: 4608 | E96: 5 | F96: 0 | G96: 0 | H96: 0.05 | I96: 230.4 | J96: 921.6 | K96: =I96/(RelatZoot!$D$7*(1-RelatZoot!$D$15)) ->  | L96: =J96/(RelatZoot!$D$7*(1-RelatZoot!$D$15)) ->  | M96: =K96/RelatZoot!$D$19 ->  | N96: =L96/RelatZoot!$D$19 ->  | O96: =I96/RelatZoot!$H$17 ->  | P96: =J96/RelatZoot!$H$17 -> 
A97: 29 | B97: Tanque 8.100 L para água potável (bombeiro) | C97: 1 | D97: 8770 | E97: 10 | F97: 0.2 | G97: 1754 | I97: 0 | J97: 701.6 | K97: =I97/(RelatZoot!$D$7*(1-RelatZoot!$D$15)) ->  | L97: =J97/(RelatZoot!$D$7*(1-RelatZoot!$D$15)) ->  | M97: =K97/RelatZoot!$D$19 ->  | N97: =L97/RelatZoot!$D$19 ->  | O97: =I97/RelatZoot!$H$17 ->  | P97: =J97/RelatZoot!$H$17 -> 
A98: 30 | E98: 0.1 | G98: 0 | I98: 0 | J98: 0 | K98: =I98/(RelatZoot!$D$7*(1-RelatZoot!$D$15)) ->  | L98: =J98/(RelatZoot!$D$7*(1-RelatZoot!$D$15)) ->  | M98: =K98/RelatZoot!$D$19 ->  | N98: =L98/RelatZoot!$D$19 ->  | O98: =I98/RelatZoot!$H$17 ->  | P98: =J98/RelatZoot!$H$17 -> 
A99: 31 | E99: 0.1 | G99: 0 | I99: 0 | J99: 0 | K99: =I99/(RelatZoot!$D$7*(1-RelatZoot!$D$15)) ->  | L99: =J99/(RelatZoot!$D$7*(1-RelatZoot!$D$15)) ->  | M99: =K99/RelatZoot!$D$19 ->  | N99: =L99/RelatZoot!$D$19 ->  | O99: =I99/RelatZoot!$H$17 ->  | P99: =J99/RelatZoot!$H$17 -> 
A100: 32 | E100: 0.1 | G100: 0 | I100: 0 | J100: 0 | K100: =I100/(RelatZoot!$D$7*(1-RelatZoot!$D$15)) ->  | L100: =J100/(RelatZoot!$D$7*(1-RelatZoot!$D$15)) ->  | M100: =K100/RelatZoot!$D$19 ->  | N100: =L100/RelatZoot!$D$19 ->  | O100: =I100/RelatZoot!$H$17 ->  | P100: =J100/RelatZoot!$H$17 -> 
A101: 33 | E101: 0.1 | G101: 0 | I101: 0 | J101: 0 | K101: =I101/(RelatZoot!$D$7*(1-RelatZoot!$D$15)) ->  | L101: =J101/(RelatZoot!$D$7*(1-RelatZoot!$D$15)) ->  | M101: =K101/RelatZoot!$D$19 ->  | N101: =L101/RelatZoot!$D$19 ->  | O101: =I101/RelatZoot!$H$17 ->  | P101: =J101/RelatZoot!$H$17 -> 
B102: Subtotal de Máquinas e Equipamentos | D102: =SUM(D5:D101) -> 9128387 | G102: =SUM(G5:G101) -> 1688076.2 | I102: =SUM(I5:I101) -> 960618.4 | J102: 864864.3467
C103: Veículos
A104: 1 | E104: 0.1 | G104: =D104*F104 -> 0 | I104: =D104*H104*C104 -> 0 | J104: =((D104-G104)/E104)*C104 -> 0 | K104: =I104/(RelatZoot!$D$7*(1-RelatZoot!$D$15)) ->  | L104: =J104/(RelatZoot!$D$7*(1-RelatZoot!$D$15)) ->  | M104: =K104/RelatZoot!$D$19 ->  | N104: =L104/RelatZoot!$D$19 ->  | O104: =I104/RelatZoot!$H$17 ->  | P104: =J104/RelatZoot!$H$17 -> 
A105: 2 | B105: Fiat - Strada | C105: 1 | D105: 35000 | E105: 5 | F105: 0.4 | G105: 14000 | H105: 0.1 | I105: =D105*H105*C105 -> 3500 | J105: =((D105-G105)/E105)*C105 -> 4200 | K105: =I105/(RelatZoot!$D$7*(1-RelatZoot!$D$15)) ->  | L105: =J105/(RelatZoot!$D$7*(1-RelatZoot!$D$15)) ->  | M105: =K105/RelatZoot!$D$19 ->  | N105: =L105/RelatZoot!$D$19 ->  | O105: =I105/RelatZoot!$H$17 ->  | P105: =J105/RelatZoot!$H$17 -> 
A106: 3 | B106: Fiat - Pálio | C106: 1 | D106: 36000 | E106: 5 | F106: 0.4 | G106: 14400 | H106: 0.1 | I106: 3600 | J106: 4320 | K106: =I106/(RelatZoot!$D$7*(1-RelatZoot!$D$15)) ->  | L106: =J106/(RelatZoot!$D$7*(1-RelatZoot!$D$15)) ->  | M106: =K106/RelatZoot!$D$19 ->  | N106: =L106/RelatZoot!$D$19 ->  | O106: =I106/RelatZoot!$H$17 ->  | P106: =J106/RelatZoot!$H$17 -> 
A107: 4 | B107: Fiat - Uno | C107: 1 | D107: 28000 | E107: 5 | F107: 0.4 | G107: 11200 | H107: 0.1 | I107: 2800 | J107: 3360 | K107: =I107/(RelatZoot!$D$7*(1-RelatZoot!$D$15)) ->  | L107: =J107/(RelatZoot!$D$7*(1-RelatZoot!$D$15)) ->  | M107: =K107/RelatZoot!$D$19 ->  | N107: =L107/RelatZoot!$D$19 ->  | O107: =I107/RelatZoot!$H$17 ->  | P107: =J107/RelatZoot!$H$17 -> 
A108: 5 | B108: VW - Gol | C108: 1 | D108: 36000 | E108: 5 | F108: 0.4 | G108: 14400 | H108: 0.1 | I108: =D108*H108*C108 -> 3600 | J108: =((D108-G108)/E108)*C108 -> 4320 | K108: =I108/(RelatZoot!$D$7*(1-RelatZoot!$D$15)) ->  | L108: =J108/(RelatZoot!$D$7*(1-RelatZoot!$D$15)) ->  | M108: =K108/RelatZoot!$D$19 ->  | N108: =L108/RelatZoot!$D$19 ->  | O108: =I108/RelatZoot!$H$17 ->  | P108: =J108/RelatZoot!$H$17 -> 
A109: 6 | B109: GM - Montana | E109: 0.1 | G109: 0 | I109: 0 | J109: 0 | K109: =I109/(RelatZoot!$D$7*(1-RelatZoot!$D$15)) ->  | L109: =J109/(RelatZoot!$D$7*(1-RelatZoot!$D$15)) ->  | M109: =K109/RelatZoot!$D$19 ->  | N109: =L109/RelatZoot!$D$19 ->  | O109: =I109/RelatZoot!$H$17 ->  | P109: =J109/RelatZoot!$H$17 -> 
A110: 7 | B110: Motocicleta - Honda Bros | C110: 1 | D110: 10000 | E110: 5 | F110: 0.4 | G110: 4000 | H110: 0.1 | I110: 1000 | J110: 1200 | K110: =I110/(RelatZoot!$D$7*(1-RelatZoot!$D$15)) ->  | L110: =J110/(RelatZoot!$D$7*(1-RelatZoot!$D$15)) ->  | M110: =K110/RelatZoot!$D$19 ->  | N110: =L110/RelatZoot!$D$19 ->  | O110: =I110/RelatZoot!$H$17 ->  | P110: =J110/RelatZoot!$H$17 -> 
A111: 8 | B111: Quadriciclo - Honda - Motor Tracs | E111: 0.1 | G111: 0 | I111: 0 | J111: 0 | K111: =I111/(RelatZoot!$D$7*(1-RelatZoot!$D$15)) ->  | L111: =J111/(RelatZoot!$D$7*(1-RelatZoot!$D$15)) ->  | M111: =K111/RelatZoot!$D$19 ->  | N111: =L111/RelatZoot!$D$19 ->  | O111: =I111/RelatZoot!$H$17 ->  | P111: =J111/RelatZoot!$H$17 -> 
A112: 9 | E112: 0.1 | G112: 0 | I112: =D112*H112*C112 -> 0 | J112: =((D112-G112)/E112)*C112 -> 0 | K112: =I112/(RelatZoot!$D$7*(1-RelatZoot!$D$15)) ->  | L112: =J112/(RelatZoot!$D$7*(1-RelatZoot!$D$15)) ->  | M112: =K112/RelatZoot!$D$19 ->  | N112: =L112/RelatZoot!$D$19 ->  | O112: =I112/RelatZoot!$H$17 ->  | P112: =J112/RelatZoot!$H$17 -> 
A113: 10 | E113: 0.1 | G113: 0 | I113: 0 | J113: 0 | K113: =I113/(RelatZoot!$D$7*(1-RelatZoot!$D$15)) ->  | L113: =J113/(RelatZoot!$D$7*(1-RelatZoot!$D$15)) ->  | M113: =K113/RelatZoot!$D$19 ->  | N113: =L113/RelatZoot!$D$19 ->  | O113: =I113/RelatZoot!$H$17 ->  | P113: =J113/RelatZoot!$H$17 -> 
B114: Subtotal de Veículos | D114: =SUM(D104:D113) -> 145000 | G114: =SUM(G104:G113) -> 58000 | I114: =SUM(I104:I113) -> 14500 | J114: =SUM(J104:J113) -> 17400 | K114: =SUM(K104:K113) ->  | L114: =SUM(L104:L113) -> 
C115: Material de Escritório e Utensílios
A117: 1 | E117: 0.1 | G117: =D117*F117 -> 0 | I117: =D117*H117*C117 -> 0 | J117: =((D117-G117)/E117)*C117 -> 0 | K117: =I117/(RelatZoot!$D$7*(1-RelatZoot!$D$15)) ->  | L117: =J117/(RelatZoot!$D$7*(1-RelatZoot!$D$15)) ->  | M117: =K117/RelatZoot!$D$19 ->  | N117: =L117/RelatZoot!$D$19 ->  | O117: =I117/RelatZoot!$H$17 ->  | P117: =J117/RelatZoot!$H$17 -> 
A118: 2 | B118: Computadores | C118: 6 | D118: 2500 | E118: 5 | F118: 0 | G118: 0 | H118: 0.1 | I118: =D118*H118*C118 -> 1500 | J118: =((D118-G118)/E118)*C118 -> 3000 | K118: =I118/(RelatZoot!$D$7*(1-RelatZoot!$D$15)) ->  | L118: =J118/(RelatZoot!$D$7*(1-RelatZoot!$D$15)) ->  | M118: =K118/RelatZoot!$D$19 ->  | N118: =L118/RelatZoot!$D$19 ->  | O118: =I118/RelatZoot!$H$17 ->  | P118: =J118/RelatZoot!$H$17 -> 
A119: 3 | B119: Impressoras | C119: 1 | D119: 3500 | E119: 5 | F119: 0 | G119: 0 | H119: 0.1 | I119: 350 | J119: 700 | K119: =I119/(RelatZoot!$D$7*(1-RelatZoot!$D$15)) ->  | L119: =J119/(RelatZoot!$D$7*(1-RelatZoot!$D$15)) ->  | M119: =K119/RelatZoot!$D$19 ->  | N119: =L119/RelatZoot!$D$19 ->  | O119: =I119/RelatZoot!$H$17 ->  | P119: =J119/RelatZoot!$H$17 -> 
A120: 4 | B120: Climatização | C120: 4 | D120: 2000 | E120: 5 | F120: 0 | G120: 0 | H120: 0.1 | I120: 800 | J120: 1600 | K120: =I120/(RelatZoot!$D$7*(1-RelatZoot!$D$15)) ->  | L120: =J120/(RelatZoot!$D$7*(1-RelatZoot!$D$15)) ->  | M120: =K120/RelatZoot!$D$19 ->  | N120: =L120/RelatZoot!$D$19 ->  | O120: =I120/RelatZoot!$H$17 ->  | P120: =J120/RelatZoot!$H$17 -> 
A121: 5 | E121: 0.1 | G121: 0 | I121: 0 | J121: 0 | K121: =I121/(RelatZoot!$D$7*(1-RelatZoot!$D$15)) ->  | L121: =J121/(RelatZoot!$D$7*(1-RelatZoot!$D$15)) ->  | M121: =K121/RelatZoot!$D$19 ->  | N121: =L121/RelatZoot!$D$19 ->  | O121: =I121/RelatZoot!$H$17 ->  | P121: =J121/RelatZoot!$H$17 -> 
A122: 6 | B122: Irrigação do jardim do escritório | C122: 0.5 | D122: 50000 | E122: 10 | F122: 0 | G122: 0 | H122: 0.1 | I122: =D122*H122*C122 -> 2500 | J122: =((D122-G122)/E122)*C122 -> 2500 | K122: =I122/(RelatZoot!$D$7*(1-RelatZoot!$D$15)) ->  | L122: =J122/(RelatZoot!$D$7*(1-RelatZoot!$D$15)) ->  | M122: =K122/RelatZoot!$D$19 ->  | N122: =L122/RelatZoot!$D$19 ->  | O122: =I122/RelatZoot!$H$17 ->  | P122: =J122/RelatZoot!$H$17 -> 
A123: 7 | E123: 0.1 | G123: 0 | I123: 0 | J123: 0 | K123: =I123/(RelatZoot!$D$7*(1-RelatZoot!$D$15)) ->  | L123: =J123/(RelatZoot!$D$7*(1-RelatZoot!$D$15)) ->  | M123: =K123/RelatZoot!$D$19 ->  | N123: =L123/RelatZoot!$D$19 ->  | O123: =I123/RelatZoot!$H$17 ->  | P123: =J123/RelatZoot!$H$17 -> 
A124: 8 | B124: Sistema de radiocomunicação | C124: 1 | D124: 7490 | E124: 5 | F124: 0 | G124: 0 | H124: 0.1 | I124: 749 | J124: 1498 | K124: =I124/(RelatZoot!$D$7*(1-RelatZoot!$D$15)) ->  | L124: =J124/(RelatZoot!$D$7*(1-RelatZoot!$D$15)) ->  | M124: =K124/RelatZoot!$D$19 ->  | N124: =L124/RelatZoot!$D$19 ->  | O124: =I124/RelatZoot!$H$17 ->  | P124: =J124/RelatZoot!$H$17 -> 
A125: 9 | B125: Cadeiras | C125: 10 | D125: 200 | E125: 5 | F125: 0 | G125: 0 | H125: 0.05 | I125: 100 | J125: 400 | K125: =I125/(RelatZoot!$D$7*(1-RelatZoot!$D$15)) ->  | L125: =J125/(RelatZoot!$D$7*(1-RelatZoot!$D$15)) ->  | M125: =K125/RelatZoot!$D$19 ->  | N125: =L125/RelatZoot!$D$19 ->  | O125: =I125/RelatZoot!$H$17 ->  | P125: =J125/RelatZoot!$H$17 -> 
A126: 10 | B126: Mesas | C126: 10 | D126: 500 | E126: 5 | F126: 0 | G126: 0 | H126: 0.05 | I126: 250 | J126: 1000 | K126: =I126/(RelatZoot!$D$7*(1-RelatZoot!$D$15)) ->  | L126: =J126/(RelatZoot!$D$7*(1-RelatZoot!$D$15)) ->  | M126: =K126/RelatZoot!$D$19 ->  | N126: =L126/RelatZoot!$D$19 ->  | O126: =I126/RelatZoot!$H$17 ->  | P126: =J126/RelatZoot!$H$17 -> 
A127: 11 | B127: Ventiladores | C127: 3 | D127: 200 | E127: 3 | F127: 0 | G127: 0 | H127: 0 | I127: 0 | J127: 200 | K127: =I127/(RelatZoot!$D$7*(1-RelatZoot!$D$15)) ->  | L127: =J127/(RelatZoot!$D$7*(1-RelatZoot!$D$15)) ->  | M127: =K127/RelatZoot!$D$19 ->  | N127: =L127/RelatZoot!$D$19 ->  | O127: =I127/RelatZoot!$H$17 ->  | P127: =J127/RelatZoot!$H$17 -> 
A128: 12 | B128: Frigobar/Geladeira | C128: 1 | D128: 1250 | E128: 5 | F128: 0 | G128: 0 | H128: 0.05 | I128: 62.5 | J128: 250 | K128: =I128/(RelatZoot!$D$7*(1-RelatZoot!$D$15)) ->  | L128: =J128/(RelatZoot!$D$7*(1-RelatZoot!$D$15)) ->  | M128: =K128/RelatZoot!$D$19 ->  | N128: =L128/RelatZoot!$D$19 ->  | O128: =I128/RelatZoot!$H$17 ->  | P128: =J128/RelatZoot!$H$17 -> 
A129: 13 | E129: 0.1 | G129: 0 | I129: 0 | J129: 0 | K129: =I129/(RelatZoot!$D$7*(1-RelatZoot!$D$15)) ->  | L129: =J129/(RelatZoot!$D$7*(1-RelatZoot!$D$15)) ->  | M129: =K129/RelatZoot!$D$19 ->  | N129: =L129/RelatZoot!$D$19 ->  | O129: =I129/RelatZoot!$H$17 ->  | P129: =J129/RelatZoot!$H$17 -> 
A130: 14 | E130: 0.1 | G130: =D130*F130 -> 0 | I130: =D130*H130*C130 -> 0 | J130: =((D130-G130)/E130)*C130 -> 0 | K130: =I130/(RelatZoot!$D$7*(1-RelatZoot!$D$15)) ->  | L130: =J130/(RelatZoot!$D$7*(1-RelatZoot!$D$15)) ->  | M130: =K130/RelatZoot!$D$19 ->  | N130: =L130/RelatZoot!$D$19 ->  | O130: =I130/RelatZoot!$H$17 ->  | P130: =J130/RelatZoot!$H$17 -> 
A131: 15 | E131: 0.1 | G131: 0 | I131: 0 | J131: 0 | K131: =I131/(RelatZoot!$D$7*(1-RelatZoot!$D$15)) ->  | L131: =J131/(RelatZoot!$D$7*(1-RelatZoot!$D$15)) ->  | M131: =K131/RelatZoot!$D$19 ->  | N131: =L131/RelatZoot!$D$19 ->  | O131: =I131/RelatZoot!$H$17 ->  | P131: =J131/RelatZoot!$H$17 -> 
I132: =SUM(I117:I121) -> 2650 | J132: 5300
B133: =CaractZoot!C24 -> Protocolo Sanitário e Protocolo de Identificação
B135: =CaractZoot!C26 -> Protocolo Sanitário
A136: 1 | B136: Clostridioses
A137: 2 | B137: Doenças Respiratórias
A138: 3 | B138: Botulismo
A139: 4 | B139: Carbúnculos
A140: 5 | B140: Anti-parasitário
A141: 6 | B141: Anti-helmintico
A142: 7 | B142: Anti-inflamatório
A143: 8 | B143: Endectocida
A144: 9 | B144: Outros
A145: 10
A146: 11
A147: 12 | B147: Suplemento mineral
A148: 13 | B148: Suplemento vitamínico
A149: 14 | B149: Suplemento min e vitam
A150: 15 | B150: Outros
A151: 16
A152: 17
A153: 1 | B153: =CaractZoot!C41 -> Protocolo de Identificação
A154: 2 | B154: Brinco de identificação
A155: 3 | B155: Brinco da rastreabilidade
A156: 4 | B156: Chip eletrônico
A157: 5 | B157: Marcação a ferro
A158: 6 | B158: Outros
A159: 7
A160: 8
A161: 9
A162: 10
B164: Curral
B165: Capacidade de processamento de animais
B166: 0 | C166: 399
B167: 400 | C167: 599
B168: 600 | C168: 799 | D168: 600000
B169: 800 | C169: 999
B170: 1000 | C170: 2000
B172: =CaractSistema!C54 -> Contratação de serviços administrativos
A174: 1 | B174: Software de controle financeiro
A175: 2 | B175: Software de gestão da dieta
A176: 3 | B176: Software de rastreabilidade bovina
A177: 4 | B177: Software gestão da dieta e rastreabilidade
A178: 5
A179: 6
A180: 7 | B180: Consultoria
A181: 8 | B181: Honorários contábeis
A182: 9 | B182: Auditoria
A183: 10
A184: 11
A186: 1 | B186: Macho
A187: 2 | B187: Fêmea
A189: 1 | B189: Não Castrado
A190: 2 | B190: Castrado

Sheet Informações

Sheet AlocaçãoCustos
J1: =TODAY() -> 2016-07-21 | K1: =NOW() -> 42572.60481
H2: CUSTO POR:
H3: atividade | I3: animal | J3: arroba | K3: diária boi
B4: A - Custos Variáveis (1 a 6)
C6: 1. Aquisição de animais | H6: =RelatZoot!D5*RelatZoot!D8 -> 0 | I6: =IF(CaractSistema!E9>0,RelatZoot!D8,0) -> 0 | J6: =I6/RelatZoot!D19 ->  | K6: -
C7: 2. Alimentação | H7: =CaractZoot!J76*RelatZoot!H17*(1+CaractZoot!H54) -> 0 | I7: =RelatZoot!$D$12*CaractZoot!$J$76*(1+CaractZoot!H54) -> 0 | J7: =I7/RelatZoot!D19 ->  | K7: =CaractZoot!J76*(1+CaractZoot!H54) -> 0
C8: ="3. "&CaractZoot!C39 -> 3. Protocolo Sanitário - Total | H8: =CaractZoot!E39*RelatZoot!D7 -> 0 | I8: =CaractZoot!F39 -> 0 | J8: =CaractZoot!G39 ->  | K8: =CaractZoot!H39 -> 
C9: ="4. "&CaractZoot!C51 -> 4. Protocolo de Identificação - Total | H9: =CaractZoot!E51*RelatZoot!D7 -> 0 | I9: =CaractZoot!F51 -> 0 | J9: =CaractZoot!G51 ->  | K9: =CaractZoot!H51 -> 
B11: SubTotal | C11: Custos variáveis (1 a 4) | H11: =SUM(H6:H9) -> 0 | I11: =SUM(I6:I9) -> 0 | J11: =SUM(J6:J9) -> 
C13: 5. Outros custos variáveis
C14: 5.1 | D14: ='Custos F V'!B51 -> Limpeza e aterramento dos piquetes | H14: ='Custos F V'!G51 -> 0 | I14: ='Custos F V'!H51 ->  | J14: ='Custos F V'!I51 ->  | K14: ='Custos F V'!J51 -> 
C15: 5.2 | D15: ='Custos F V'!B56 -> Transporte de animais mortos | H15: ='Custos F V'!F56 -> 0 | I15: ='Custos F V'!G58 ->  | J15: ='Custos F V'!H58 ->  | K15: ='Custos F V'!I58 -> 
C16: 5.3 | D16: =CaractSistema!C52 -> Mão de obra temporária - Total | H16: =CaractSistema!H52 -> 0 | I16: =CaractSistema!I52 ->  | J16: =CaractSistema!J52 ->  | K16: =CaractSistema!K52 -> 
B18: SubTotal | C18: =C13 -> 5. Outros custos variáveis | H18: =SUM(H14:H16) -> 0 | I18: =SUM(I14:I16) ->  | J18: =SUM(J14:J16) -> 
C20: ="6. "&'Custos F V'!C62 -> 6. Impostos Variáveis | H20: ='Custos F V'!D73 -> 0 | I20: ='Custos F V'!E73 ->  | J20: ='Custos F V'!F73 ->  | K20: ='Custos F V'!G73 -> 
B22: SubTotal | C22: =B4 -> A - Custos Variáveis (1 a 6) | H22: =SUM(H11+H18+H20) -> 0 | I22: =SUM(I11+I18+I20) ->  | J22: =SUM(J11+J18+J20) ->  | K22: =SUM(K11+K18+K20) -> 
B24: B - Custos Semifixos (7 a 10)
C25: ="7. "&CaractSistema!C81 -> 7. Energia Elétrica | H25: =CaractSistema!G88 -> 0 | I25: =CaractSistema!H88 ->  | J25: =CaractSistema!I88 ->  | K25: =CaractSistema!J88 -> 
C26: ="8. "&CaractSistema!C91 -> 8. Telefonia e serviço de internet | H26: =CaractSistema!G96 -> 0 | I26: =CaractSistema!H96 ->  | J26: =CaractSistema!I96 ->  | K26: =CaractSistema!J96 -> 
C27: ="9. "&CaractSistema!C72 -> 9. Combustíveis | H27: =CaractSistema!G78 -> 0 | I27: =CaractSistema!H78 ->  | J27: =CaractSistema!I78 ->  | K27: =CaractSistema!J78 -> 
C28: 10. Outros custos semifixos
D29: ="10.1 "&CaractSistema!C54 -> 10.1 Contratação de serviços administrativos | H29: =CaractSistema!G64 -> 0 | I29: =CaractSistema!H64 ->  | J29: =CaractSistema!I64 ->  | K29: =CaractSistema!J64 -> 
B31: SubTotal | C31: =B24 -> B - Custos Semifixos (7 a 10) | H31: =SUM(H25:H29) -> 0 | I31: =SUM(I25:I29) ->  | J31: =SUM(J25:J29) ->  | K31: =SUM(K25:K29) -> 
B33: C - Custos Fixos (11 a 14)
C35: ="11. "& CaractSistema!C23 -> 11. Mão de obra fixa | H35: =CaractSistema!H38 -> 0 | I35: =CaractSistema!I38 ->  | J35: =CaractSistema!J38 ->  | K35: =CaractSistema!K38 -> 
C37: 12. Depreciações
C38: 12.1 | D38: ="Subtotal "&'Maq Equip e Veic'!B3 -> Subtotal Máquinas | H38: ='Maq Equip e Veic'!I24 -> 0 | I38: ='Maq Equip e Veic'!K24 ->  | J38: ='Maq Equip e Veic'!M24 ->  | K38: ='Maq Equip e Veic'!O24 -> 
C39: 12.2 | D39: ="Subtotal "&'Maq Equip e Veic'!B25 -> Subtotal Equipamentos | H39: ='Maq Equip e Veic'!I46 -> 0 | I39: ='Maq Equip e Veic'!K46 ->  | J39: ='Maq Equip e Veic'!M46 ->  | K39: ='Maq Equip e Veic'!O46 -> 
C40: 12.3 | D40: ="Subtotal "&'Maq Equip e Veic'!B47 -> Subtotal Veículos | H40: ='Maq Equip e Veic'!I58 -> 0 | I40: ='Maq Equip e Veic'!K58 ->  | J40: ='Maq Equip e Veic'!M58 ->  | K40: ='Maq Equip e Veic'!O58 -> 
C41: 12.4 | D41: Subtotal Materiais de Escritório | H41: ='Mat Escrit'!I19 -> 0 | I41: ='Mat Escrit'!K19 ->  | J41: ='Mat Escrit'!M19 ->  | K41: ='Mat Escrit'!O19 -> 
C42: 12.5 | D42: Subtotal de Construções | H42: ='Custos F V'!L33 ->  | I42: ='Custos F V'!N33 ->  | J42: ='Custos F V'!P33 ->  | K42: ='Custos F V'!R33 -> 
C43: 12.6 | D43: ='Custos F V'!C34 -> Animais de trabalho | H43: ='Custos F V'!J37 -> 0 | I43: ='Custos F V'!K37 ->  | J43: ='Custos F V'!L37 ->  | K43: ='Custos F V'!M37 -> 
B45: SubTotal | C45: =C37 -> 12. Depreciações | H45: =SUM(H38:H43) ->  | I45: =SUM(I38:I43) ->  | J45: =SUM(J38:J43) ->  | K45: =SUM(K38:K43) -> 
C47: 13. Manutenções
C48: 13.1 | D48: =D38 -> Subtotal Máquinas | H48: ='Maq Equip e Veic'!H24 -> 0 | I48: ='Maq Equip e Veic'!J24 ->  | J48: ='Maq Equip e Veic'!L24 ->  | K48: ='Maq Equip e Veic'!N24 -> 
C49: 13.2 | D49: =D39 -> Subtotal Equipamentos | H49: ='Maq Equip e Veic'!H46 -> 0 | I49: ='Maq Equip e Veic'!J46 ->  | J49: ='Maq Equip e Veic'!L46 ->  | K49: ='Maq Equip e Veic'!N46 -> 
C50: 13.3 | D50: =D40 -> Subtotal Veículos | H50: ='Maq Equip e Veic'!H58 -> 0 | I50: ='Maq Equip e Veic'!J58 ->  | J50: ='Maq Equip e Veic'!L58 ->  | K50: ='Maq Equip e Veic'!N58 -> 
C51: 13.4 | D51: Subtotal Materiais de Escritório | H51: ='Mat Escrit'!H19 -> 0 | I51: ='Mat Escrit'!J19 ->  | J51: ='Mat Escrit'!L19 ->  | K51: ='Mat Escrit'!N19 -> 
C52: 13.5 | D52: =D42 -> Subtotal de Construções | H52: ='Custos F V'!K33 ->  | I52: ='Custos F V'!M33 ->  | J52: ='Custos F V'!O33 ->  | K52: ='Custos F V'!Q33 -> 
B54: SubTotal | C54: =C47 -> 13. Manutenções | H54: =SUM(H48:H52) ->  | I54: =SUM(I48:I52) ->  | J54: =SUM(J48:J52) ->  | K54: =SUM(K48:K52) -> 
C56: 14. Outros custos fixos
C57: 14.1 | D57: ='Custos F V'!F62 -> Impostos Fixos | H57: ='Custos F V'!D75 -> 0 | I57: ='Custos F V'!E75 -> 0 | J57: ='Custos F V'!F75 -> 0 | K57: ='Custos F V'!G75 -> 0
B59: SubTotal | C59: =B33 -> C - Custos Fixos (11 a 14) | H59: =SUM(H35,H45,H54,H57) ->  | I59: =SUM(I35,I45,I54,I57) -> 
B61: D - Renda dos Fatores (15 a 17)
C63: 15. Remuneração do capital de giro
C64: 15.1 | D64: Animais | H64: =(RelatZoot!D8*((1+RelatZoot!$M$20)^(RelatZoot!$D$12)-1))*RelatZoot!D5 -> 0 | I64: =IF(CaractSistema!E9>0,H64/(RelatZoot!$D$5*(1-RelatZoot!$D$15)),0) -> 0 | J64: =I64/RelatZoot!$D$19 ->  | K64: =I64/RelatZoot!D12 -> 
C65: 15.2 | D65: Alimentação | H65: =H7*((1+RelatZoot!$M$20)^(RelatZoot!$D$12/2)-1) -> 0 | I65: =H65/(RelatZoot!$D$7*(1-RelatZoot!$D$15)) ->  | J65: =I65/RelatZoot!$D$19 ->  | K65: =K7*((1+RelatZoot!$M$20)^(RelatZoot!$D$12/2)-1) -> 0
C66: 15.3 | D66: Demais itens do capital de giro | H66: =(H22-H6-H7+H31+H35)*((1+RelatZoot!$M$20)^(RelatZoot!$D$12/2)-1) -> 0 | I66: =H66/(RelatZoot!$D$7*(1-RelatZoot!$D$15)) ->  | J66: =I66/RelatZoot!$D$19 ->  | K66: =(K22-K7+K31+K35)*((1+RelatZoot!$M$20)^(RelatZoot!$D$12/2)-1) -> 
B68: SubTotal | C68: =C63 -> 15. Remuneração do capital de giro | H68: =SUM(H64:H66) -> 0 | I68: =SUM(I64:I66) ->  | J68: =SUM(J64:J66) ->  | K68: =SUM(K64:K66) -> 
C70: 16. Remunerações do capital fixo (imobilizado) | H70: =SUM('Maq Equip e Veic'!P58,'Mat Escrit'!P19,'Custos F V'!F33,'Custos F V'!F37)*((1+RelatZoot!$M$18)^(365)-1) ->  | I70: =SUM('Maq Equip e Veic'!P58,'Mat Escrit'!P19,'Custos F V'!F33,'Custos F V'!F37)*((1+RelatZoot!$M$18)^(365)-1)/(RelatZoot!$D$7*(1-RelatZoot!$D$15)) ->  | J70: =I70/RelatZoot!D19 ->  | K70: =SUM('Maq Equip e Veic'!P58,'Mat Escrit'!P19,'Custos F V'!F33,'Custos F V'!F37)*((1+RelatZoot!$M$18)^(365)-1)/RelatZoot!$H$17 -> 
C72: 17. Remuneração da terra | H72: =(RelatZoot!M15*RelatZoot!M16) -> 0 | I72: =(RelatZoot!M15*RelatZoot!M16)/(RelatZoot!$D$7*(1-RelatZoot!$D$15)) ->  | J72: =I72/RelatZoot!$D$19 ->  | K72: =(RelatZoot!M15*RelatZoot!M16)/RelatZoot!$H$17 -> 
B74: SubTotal | C74: =B61 -> D - Renda dos Fatores (15 a 17) | H74: =H68+H70+H72 ->  | I74: =I68+I70+I72 ->  | J74: =J68+J70+J72 -> 
B77: E - Custo Operacional Efetivo - COE | H77: =H22+H31+H35 -> 0 | I77: =I22+I31+I35 ->  | J77: =J22+J31+J35 ->  | K77: =K22+K31+K35 -> 
B78: F - Custo Operacional Total - COT | H78: =H22+H31+H59 ->  | I78: =I22+I31+I59 ->  | J78: =J22+J31+J59 ->  | K78: =K22+K31+K59 -> 
B80: G - | C80: Custo Total (A + B + C) | H80: =H22+H31+H59+H74 ->  | I80: =I22+I31+I59+I74 ->  | J80: =J22+J31+J59+J74 ->  | K80: =K22+K31+K59+K74-K64 -> 
B83: H - Custo Operacional - COP (sem alimentação, animais e impostos) | H83: =(H80-H7-H6-H64-H65-H20) ->  | K83: =H83/RelatZoot!$H$17 -> 
J86: =RelatZoot!G18 -> Ociosidade do sistema (%) | K86: =RelatZoot!H18 -> 
B87: Perdas econômicas | H87: =IF(RelatZoot!D5>0,RelatZoot!D7*RelatZoot!D15*(RelatZoot!D16*AlocaçãoCustos!K80+(AlocaçãoCustos!H6/RelatZoot!D5)),0) -> 0 | I87: =H87/RelatZoot!D7 ->  | J87: =I87/RelatZoot!D19 -> 
B88: Perdas econômicas por diária boi | H88: =RelatZoot!D7*RelatZoot!D15*(RelatZoot!D16*AlocaçãoCustos!K80) ->  | I88: =H88/RelatZoot!D7 ->  | J88: =I88/RelatZoot!D19 ->  | K88: =H88/RelatZoot!H17 -> 

Sheet Custos F V (hidden)
C1: CUSTOS FIXOS | M1: Boi | O1: @ | Q1: Diária boi
M2: Manutenção | N2: Depreciação | O2: Manutenção | P2: Depreciação | Q2: Manutenção | R2: Depreciação
C3: =B6 -> Piquetes/currais de engorda
K4: Anual
E5: R$/cab | F5: Valor (R$) | G5: vida útil (anos) | H5: Valor Residual (%) | I5: Valor Residual (R$) | J5: Taxa de Manutenção | K5: Manutenção | L5: Depreciação
B6: =Instal!C7 -> Piquetes/currais de engorda | E6: =PiqEngord!D3 ->  | F6: =E6*RelatZoot!$M$7 ->  | G6: =IF(PiqEngord!D15>0,PiqEngord!D15,10) -> 10 | H6: =IF(PiqEngord!D16<>"",PiqEngord!D16,0.2) -> 0.2 | I6: =F6*H6 ->  | J6: =IF(PiqEngord!D17<>"",PiqEngord!D17,0.15) -> 0.15 | K6: =F6*J6 ->  | L6: =(F6-I6)/G6 ->  | M6: =K6/(RelatZoot!$D$7*(1-RelatZoot!$D$15)) ->  | N6: =L6/(RelatZoot!$D$7*(1-RelatZoot!$D$15)) ->  | O6: =M6/RelatZoot!$D$19 ->  | P6: =N6/RelatZoot!$D$19 ->  | Q6: =K6/RelatZoot!$H$17 ->  | R6: =L6/RelatZoot!$H$17 -> 
G7: 0.1
B9: =Instal!C13 -> Sistema de irrigação nos currais de engorda | F9: =Instal!E15 -> 0 | G9: =IF(Instal!E16>0,Instal!E16,0.001) -> 0.001 | H9: =Instal!E17 -> 0 | I9: =F9*H9 -> 0 | J9: =Instal!E18 -> 0 | K9: =F9*J9 -> 0 | L9: =(F9-I9)/G9 -> 0 | M9: =K9/(RelatZoot!$D$7*(1-RelatZoot!$D$15)) ->  | N9: =L9/(RelatZoot!$D$7*(1-RelatZoot!$D$15)) ->  | O9: =M9/RelatZoot!$D$19 ->  | P9: =N9/RelatZoot!$D$19 ->  | Q9: =K9/RelatZoot!$H$17 ->  | R9: =L9/RelatZoot!$H$17 -> 
C11: =B14 -> Curral de Manejo dos Animais
K12: Anual
D13: Capacidade de processamento | F13: Valor (R$) | G13: vida útil (anos) | H13: Valor Residual (%) | I13: Valor Residual (R$) | J13: Taxa de Manutenção | K13: Manutenção | L13: Depreciação
B14: =Instal!C22 -> Curral de Manejo dos Animais | D14: =Instal!E24 -> 0 | E14: =Instal!F24 -> animais | F14: =VLOOKUP(Instal!E24,Lista_Bens!B166:D170,3,1) -> 0 | G14: =IF(Instal!E28>0,Instal!E28,10) -> 10 | H14: =IF(Instal!E29<>"",Instal!E29,0.2) -> 0.2 | I14: =F14*H14 -> 0 | J14: =IF(Instal!E30<>"",Instal!E30,0.1) -> 0.1 | K14: =F14*J14 -> 0 | L14: =(F14-I14)/G14 -> 0 | M14: =K14/(RelatZoot!$D$7*(1-RelatZoot!$D$15)) ->  | N14: =L14/(RelatZoot!$D$7*(1-RelatZoot!$D$15)) ->  | O14: =M14/RelatZoot!$D$19 ->  | P14: =N14/RelatZoot!$D$19 ->  | Q14: =K14/RelatZoot!$H$17 ->  | R14: =L14/RelatZoot!$H$17 -> 
G15: 0.1 | I15: =F15*H15 -> 0 | K15: =F15*J15 -> 0 | L15: =(F15-I15)/G15 -> 0 | M15: =K15/(RelatZoot!$D$7*(1-RelatZoot!$D$15)) ->  | N15: =L15/(RelatZoot!$D$7*(1-RelatZoot!$D$15)) ->  | O15: =M15/RelatZoot!$D$19 ->  | P15: =N15/RelatZoot!$D$19 ->  | Q15: =K15/RelatZoot!$H$17 ->  | R15: =L15/RelatZoot!$H$17 -> 
C17: Demais instalações
K18: Anual
C19: R$/m² | D19: m² | E19: Rateio (%) | F19: Valor (R$) | G19: vida útil (anos) | H19: Valor Residual (%) | I19: Valor Residual (R$) | J19: Taxa de Manutenção | K19: Manutenção | L19: Depreciação
B20: =Instal!C34 -> Fábrica de Ração e anexos | C20: =Instal!E37 -> 0 | D20: =Instal!E36 -> 0 | E20: =Instal!E42 -> 0 | F20: =IF(Instal!E37>0,C20*D20*E20,CaractSistema!E109*D20*E20) -> 0 | G20: =IF(Instal!E39>0,Instal!E39,10) -> 10 | H20: =IF(Instal!E40<>"",Instal!E40,0.2) -> 0.2 | I20: =F20*H20 -> 0 | J20: =IF(Instal!E41<>"",Instal!E41,0.05) -> 0.05 | K20: =F20*J20 -> 0 | L20: =(F20-I20)/G20 -> 0 | M20: =K20/(RelatZoot!$D$7*(1-RelatZoot!$D$15)) ->  | N20: =L20/(RelatZoot!$D$7*(1-RelatZoot!$D$15)) ->  | O20: =M20/RelatZoot!$D$19 ->  | P20: =N20/RelatZoot!$D$19 ->  | Q20: =K20/RelatZoot!$H$17 ->  | R20: =L20/RelatZoot!$H$17 -> 
B21: =Instal!C46 -> Escritório Administrativo | C21: =Instal!E49 -> 0 | D21: =Instal!E48 -> 0 | E21: =Instal!E54 -> 0 | F21: =IF(Instal!E49>0,C21*D21*E21,CaractSistema!E110*D21*E21) -> 0 | G21: =IF(Instal!E51>0,Instal!E51,20) -> 20 | H21: =IF(Instal!E52<>"",Instal!E52,0.2) -> 0.2 | I21: =F21*H21 -> 0 | J21: =IF(Instal!E53<>"",Instal!E53,0.1) -> 0.1 | K21: =F21*J21 -> 0 | L21: =(F21-I21)/G21 -> 0 | M21: =K21/(RelatZoot!$D$7*(1-RelatZoot!$D$15)) ->  | N21: =L21/(RelatZoot!$D$7*(1-RelatZoot!$D$15)) ->  | O21: =M21/RelatZoot!$D$19 ->  | P21: =N21/RelatZoot!$D$19 ->  | Q21: =K21/RelatZoot!$H$17 ->  | R21: =L21/RelatZoot!$H$17 -> 
B22: =Instal!C58 -> Barracão de Máquinas | C22: =Instal!E61 -> 0 | D22: =Instal!E60 -> 0 | E22: =Instal!E66 -> 0 | F22: =IF(Instal!E61>0,(C22*D22)*E22,(CaractSistema!E109*D22)*E22) -> 0 | G22: =IF(Instal!E63>0,Instal!E63,10) -> 10 | H22: =IF(Instal!E64<>"",Instal!E64,0.2) -> 0.2 | I22: =F22*H22 -> 0 | J22: =IF(Instal!E65<>"",Instal!E65,0.05) -> 0.05 | K22: =F22*J22 -> 0 | L22: =(F22-I22)/G22 -> 0 | M22: =K22/(RelatZoot!$D$7*(1-RelatZoot!$D$15)) ->  | N22: =L22/(RelatZoot!$D$7*(1-RelatZoot!$D$15)) ->  | O22: =M22/RelatZoot!$D$19 ->  | P22: =N22/RelatZoot!$D$19 ->  | Q22: =K22/RelatZoot!$H$17 ->  | R22: =L22/RelatZoot!$H$17 -> 
B23: =Instal!D83 -> Área de Vivência e outros (selaria, sanitários, quiosques, ...) | C23: =Instal!E86 -> 0 | D23: =Instal!E85 -> 0 | E23: =Instal!E91 -> 0 | F23: =IF(Instal!E86>0,(C23*D23)*E23,(CaractSistema!E109*D23)*E23) -> 0 | G23: =IF(Instal!E88>0,Instal!E88,10) -> 10 | H23: =IF(Instal!E89<>"",Instal!E89,0.2) -> 0.2 | I23: =F23*H23 -> 0 | J23: =IF(Instal!E90<>"",Instal!E90,0.05) -> 0.05 | K23: =F23*J23 -> 0 | L23: =(F23-I23)/G23 -> 0 | M23: =K23/(RelatZoot!$D$7*(1-RelatZoot!$D$15)) ->  | N23: =L23/(RelatZoot!$D$7*(1-RelatZoot!$D$15)) ->  | O23: =M23/RelatZoot!$D$19 ->  | P23: =N23/RelatZoot!$D$19 ->  | Q23: =K23/RelatZoot!$H$17 ->  | R23: =L23/RelatZoot!$H$17 -> 
G24: 0.1 | M24: =K24/(RelatZoot!$D$7*(1-RelatZoot!$D$15)) ->  | N24: =L24/(RelatZoot!$D$7*(1-RelatZoot!$D$15)) ->  | O24: =M24/RelatZoot!$D$19 ->  | P24: =N24/RelatZoot!$D$19 ->  | Q24: =K24/RelatZoot!$H$17 ->  | R24: =L24/RelatZoot!$H$17 -> 
G25: 0.1 | M25: =K25/(RelatZoot!$D$7*(1-RelatZoot!$D$15)) ->  | N25: =L25/(RelatZoot!$D$7*(1-RelatZoot!$D$15)) ->  | O25: =M25/RelatZoot!$D$19 ->  | P25: =N25/RelatZoot!$D$19 ->  | Q25: =K25/RelatZoot!$H$17 ->  | R25: =L25/RelatZoot!$H$17 -> 
C27: =B30 -> Casas para funcionários do confinamento
K28: Anual
C29: R$/un | D29: Rateio (%) | E29: Unidades | F29: Valor (R$) | G29: vida útil (anos) | H29: Valor Residual (%) | I29: Valor Residual (R$) | J29: Taxa de Manutenção | K29: Manutenção | L29: Depreciação
B30: =Instal!C70 -> Casas para funcionários do confinamento | C30: =IF(Instal!E74>0,Instal!E73*Instal!E74,Instal!E73*CaractSistema!E110)+IF(Instal!E73=0,120*CaractSistema!E110) -> 0 | D30: =Instal!E79 -> 0 | E30: =Instal!E72 -> 0 | F30: =(C30*E30*D30) -> 0 | G30: =IF(Instal!E76>0,Instal!E76,20) -> 20 | H30: =IF(Instal!E77>0,Instal!E77,0.1) -> 0.1 | I30: =F30*H30 -> 0 | J30: =IF(Instal!E78>0,Instal!E78,0.05) -> 0.05 | K30: =F30*J30 -> 0 | L30: =(F30-I30)/G30 -> 0 | M30: =K30/(RelatZoot!$D$7*(1-RelatZoot!$D$15)) ->  | N30: =L30/(RelatZoot!$D$7*(1-RelatZoot!$D$15)) ->  | O30: =M30/RelatZoot!$D$19 ->  | P30: =N30/RelatZoot!$D$19 ->  | Q30: =K30/RelatZoot!$H$17 ->  | R30: =L30/RelatZoot!$H$17 -> 
G31: 0.1 | M31: =K31/(RelatZoot!$D$7*(1-RelatZoot!$D$15)) ->  | N31: =L31/(RelatZoot!$D$7*(1-RelatZoot!$D$15)) ->  | O31: =M31/RelatZoot!$D$19 ->  | P31: =N31/RelatZoot!$D$19 ->  | Q31: =K31/RelatZoot!$H$17 ->  | R31: =L31/RelatZoot!$H$17 -> 
G32: 0.1 | M32: =K32/(RelatZoot!$D$7*(1-RelatZoot!$D$15)) ->  | N32: =L32/(RelatZoot!$D$7*(1-RelatZoot!$D$15)) ->  | O32: =M32/RelatZoot!$D$19 ->  | P32: =N32/RelatZoot!$D$19 ->  | Q32: =K32/RelatZoot!$H$17 ->  | R32: =L32/RelatZoot!$H$17 -> 
F33: =SUM(F6,F9,F14,F20:F23,F30) ->  | K33: =SUM(K6:K32) -> 
C34: =CaractSistema!C99 -> Animais de trabalho
J35: Anual
D36: Unidades | E36: R$/animal | F36: Valor Unitário | G36: Vida útil (anos) | H36: Valor Residual (%) | I36: Valor Residual (R$) | J36: Depreciação | K36: Custo/boi | L36: Custo/@ | M36: Custo/DB
B37: =CaractSistema!C101 -> Tropa de animais para serviço no confinamento | D37: =CaractSistema!E101 -> 0 | E37: =CaractSistema!E102 -> 0 | F37: =E37*D37 -> 0 | G37: =IF(CaractSistema!E103>0,CaractSistema!E103,10) -> 10 | H37: =IF(CaractSistema!E104<>" ",CaractSistema!E104,0) -> 0 | I37: =F37*H37 -> 0 | J37: =(F37-I37)/G37 -> 0 | K37: =J37/(RelatZoot!$D$7*(1-RelatZoot!$D$15)) ->  | L37: =K37/RelatZoot!$D$19 ->  | M37: =J37/RelatZoot!$H$17 -> 
C41: CUSTOS VARIÁVEIS
C43: Limpeza
C45: Hmaq/curral | D45: Qtdds horas Maq | E45: R$/h máquina | F45: Nº de anim/piq | G45: R$/Anual | H45: Custo Limpeza/boi | I45: Custo Limpeza/@ | J45: Custo Limpeza/DB
B46: Raspagem/Carregamento - Pá carregadeira | C46: 4 | D46: =(Instal!$E$11*PiqEngord!$D$7)*C46 -> 0 | E46: =CaractSistema!E69 -> 0 | F46: =PiqEngord!$D$7 -> 0 | G46: =D46*E46 -> 0 | H46: =G46/(RelatZoot!$D$7*(1-RelatZoot!$D$15)) ->  | I46: =H46/RelatZoot!$D$19 ->  | J46: =G46/RelatZoot!$H$17 -> 
C48: Viagens/piq | D48: Qtdds Viagens | E48: R$/viagem | F48: Nº de anim/piq | G48: R$/Anual | H48: Custo Limpeza/boi | I48: Custo Limpeza/@ | J48: Custo Limpeza/DB
B49: Transporte do esterco | C49: =F46/10 -> 0 | D49: =(Instal!$E$11*PiqEngord!$D$7)*C49 -> 0 | E49: 26.5 | F49: =PiqEngord!$D$7 -> 0 | G49: =D49*E49 -> 0 | H49: =G49/(RelatZoot!$D$7*(1-RelatZoot!$D$15)) ->  | I49: =H49/RelatZoot!$D$19 ->  | J49: =G49/RelatZoot!$H$17 -> 
B51: Limpeza e aterramento dos piquetes | G51: =SUM(G49:G50,G46:G47) -> 0 | H51: =SUM(H49:H50,H46:H47) ->  | I51: =SUM(I49:I50,I46:I47) ->  | J51: =SUM(J49:J50,J46:J47) -> 
C52: Mortalidade
D54: R$/h maq | E54: Unidades | F54: R$/Anual | G54: Mortalidade/boi | H54: Mortalidade/@ | I54: Mortalidade/DB
B55: Protocolo Saninátio e de Identificação | E55: =RelatZoot!$D$7*RelatZoot!$D$15 -> 0 | F55: =E55*(CaractZoot!E39+CaractZoot!E51) -> 0 | G55: =F55/(RelatZoot!$D$7*(1-RelatZoot!$D$15)) ->  | H55: =G55/RelatZoot!$D$19 ->  | I55: =F55/RelatZoot!$H$17 -> 
B56: Transporte de animais mortos | D56: =CaractSistema!E69 -> 0 | E56: =RelatZoot!$D$7*RelatZoot!$D$15 -> 0 | F56: =E56*(D56/2) -> 0 | G56: =F56/(RelatZoot!$D$7*(1-RelatZoot!$D$15)) ->  | H56: =G56/RelatZoot!$D$19 ->  | I56: =F56/RelatZoot!$H$17 -> 
B57: Custo da mortalidade (Aquisição + dias de alimentação) | E57: =RelatZoot!$D$7*RelatZoot!$D$15 -> 0 | F57: =E57*((RelatZoot!D8)+(RelatZoot!D16*CaractZoot!J76)) -> 0 | G57: =F57/(RelatZoot!$D$7*(1-RelatZoot!$D$15)) ->  | H57: =G57/RelatZoot!$D$19 ->  | I57: =F57/RelatZoot!$H$17 -> 
B58: Mortalidade dos animais | F58: =SUM(F55:F57) -> 0 | G58: =SUM(G55:G57) ->  | H58: =SUM(H55:H57) ->  | I58: =SUM(I55:I57) -> 
C62: Impostos Variáveis | E62: / | F62: Impostos Fixos
C64: Taxa (%) | D64: R$/Anual | E64: R$/boi | F64: R$/@ | G64: R$/DB
B65: Funrural - Pessoa Física | C65: 0.023 | D65: =C65*(RelatZoot!$H$15*RelatZoot!$D$14) -> 0 | E65: =IF(RelatZoot!D5>0,D65/(RelatZoot!$D$5*(1-RelatZoot!D15)),0) -> 0 | F65: =IF(RelatZoot!D5>0,D65/RelatZoot!$H$15,0) -> 0 | G65: =IF(RelatZoot!D5>0,D65/(RelatZoot!$H$17*(RelatZoot!$D$5/RelatZoot!$D$7)),0) -> 0
B66: IRPF - Pessoa Física | C66: 0.275 | D66: ((((Receita-despesas)*20%)-o que aparece na tabela(9.xxx,00))*27,5%)
B67: Funrural - Pessoa Jurídica - Presumido | C67: 0.0285 | D67: =C67*(RelatZoot!$D$12*RelatZoot!$M$13*RelatZoot!$D$6) -> 0 | E67: =IF(RelatZoot!$D$6>0,D67/(RelatZoot!$D$6*(1-RelatZoot!$D$15)),0) -> 0 | F67: =IF(RelatZoot!$D$6>0,D67/(RelatZoot!$H$16-RelatZoot!$H$15),0) -> 0 | G67: =IF(RelatZoot!$D$6>0,D67/(RelatZoot!$H$17*(RelatZoot!$D$6/RelatZoot!$D$7)),0) -> 0
B68: IRPJ | C68: 0.15 | D68: =C68*((RelatZoot!$D$12*RelatZoot!$M$13*RelatZoot!$D$6)*0.32) -> 0 | E68: =IF(RelatZoot!$D$6>0,D68/(RelatZoot!$D$6*(1-RelatZoot!$D$15)),0) -> 0 | F68: =IF(RelatZoot!$D$6>0,D68/(RelatZoot!$H$16-RelatZoot!$H$15),0) -> 0 | G68: =IF(RelatZoot!$D$6>0,D68/(RelatZoot!$H$17*(RelatZoot!$D$6/RelatZoot!$D$7)),0) -> 0
B69: IRPJ adicional | C69: 0.1 | D69: =IF(RelatZoot!D6>0,C69*(((RelatZoot!$D$12*RelatZoot!$M$13*RelatZoot!$D$6)*0.32)-240000),0) -> 0 | E69: =IF(RelatZoot!$D$6>0,D69/(RelatZoot!$D$6*(1-RelatZoot!$D$15)),0) -> 0 | F69: =IF(RelatZoot!$D$6>0,D69/(RelatZoot!$H$16-RelatZoot!$H$15),0) -> 0 | G69: =IF(RelatZoot!$D$6>0,D69/(RelatZoot!$H$17*(RelatZoot!$D$6/RelatZoot!$D$7)),0) -> 0
B70: CSLL | C70: 0.09 | D70: =C70*((RelatZoot!$D$12*RelatZoot!$M$13*RelatZoot!$D$6)*0.32) -> 0 | E70: =IF(RelatZoot!$D$6>0,D70/(RelatZoot!$D$6*(1-RelatZoot!$D$15)),0) -> 0 | F70: =IF(RelatZoot!$D$6>0,D70/(RelatZoot!$H$16-RelatZoot!$H$15),0) -> 0 | G70: =IF(RelatZoot!$D$6>0,D70/(RelatZoot!$H$17*(RelatZoot!$D$6/RelatZoot!$D$7)),0) -> 0
B71: PIS | C71: 0.0065 | D71: =C71*(RelatZoot!$D$12*RelatZoot!$M$13*RelatZoot!$D$6) -> 0 | E71: =IF(RelatZoot!$D$6>0,D71/(RelatZoot!$D$6*(1-RelatZoot!$D$15)),0) -> 0 | F71: =IF(RelatZoot!$D$6>0,D71/(RelatZoot!$H$16-RelatZoot!$H$15),0) -> 0 | G71: =IF(RelatZoot!$D$6>0,D71/(RelatZoot!$H$17*(RelatZoot!$D$6/RelatZoot!$D$7)),0) -> 0
B72: COFINS | C72: 0.03 | D72: =C72*(RelatZoot!$D$12*RelatZoot!$M$13*RelatZoot!$D$6) -> 0 | E72: =IF(RelatZoot!$D$6>0,D72/(RelatZoot!$D$6*(1-RelatZoot!$D$15)),0) -> 0 | F72: =IF(RelatZoot!$D$6>0,D72/(RelatZoot!$H$16-RelatZoot!$H$15),0) -> 0 | G72: =IF(RelatZoot!$D$6>0,D72/(RelatZoot!$H$17*(RelatZoot!$D$6/RelatZoot!$D$7)),0) -> 0
B73: =C62&" - Total" -> Impostos Variáveis - Total | D73: =SUM(D65:D72) -> 0 | E73: =SUM((E65*(RelatZoot!$D$5/RelatZoot!$D$7))+(SUM(E67:E72)*(RelatZoot!$D$6/RelatZoot!$D$7))) ->  | F73: =SUM((F65*(RelatZoot!$D$5/RelatZoot!$D$7))+(SUM(F67:F72)*(RelatZoot!$D$6/RelatZoot!$D$7))) ->  | G73: =SUM((G65*(RelatZoot!$D$5/RelatZoot!$D$7))+(SUM(G67:G72)*(RelatZoot!$D$6/RelatZoot!$D$7))) -> 
B75: ITR

Sheet RelatZoot (hidden)
E2: Painel de Informações
C5: Animais - próprios + compras | D5: =CaractSistema!E9 -> 0 | L5: Águas | M5: Secas
C6: Animais - prestação de serviço | D6: =CaractSistema!E10 -> 0 | K6: duração (meses) | L6: =CaractSistema!E7 -> 0 | M6: =12-L6 -> 12
C7: Animais confinados ao ano | D7: =D5+D6 -> 0 | K7: Lotação (animais) | L7: =CaractSistema!E6 -> 0 | M7: =CaractSistema!E5 -> 0
C8: Boi Magro (R$/cab) | D8: =CaractZoot!E18 -> 0 | K8: Lotação média ao ano | L8: =(L6/12)*L7+(M6/12)*M7 -> 0
C9: PV inicial médio (kg/cab) | D9: =CaractZoot!E11 -> 0
C10: PV final médio (kg/cab) | D10: =CaractZoot!E12 -> 0 | L10: Capacidade teorica anual (animais) | M10: =L8*(360/D12) -> 
C11: PV médio período (kg/cab) | D11: =(D9+D10)/2 -> 0 | L11: Capacidade teorica anual (@) | M11: =M10*D19 -> 
C12: Dias em confinamento | D12: =CaractZoot!E14 -> 0 | L12: DB - capacidade max teorica nominal | M12: =M10*D12 -> 
C13: Rend. de Carcaça médio (%) | D13: =CaractZoot!E13 -> 0 | L13: Valor cobrado da diária boi - DB | M13: =CaractZoot!E20 -> 0
C14: Valor recebido por @ | D14: =CaractZoot!E19 -> 0
C15: Mortalidade (%) | D15: =CaractZoot!E15 -> 0 | G15: Quantidade vendidas de @ | H15: =$D$19*D5*(1-$D$15) -> 0 | L15: Área de ocupação do sistema (ha) | M15: =CaractSistema!E12 -> 0
C16: Período de Mortalidade (dias) | D16: =CaractZoot!E16 -> 0 | G16: Quantidade produzida de @ | H16: =$D$19*D7*(1-$D$15) -> 0 | L16: Arrendamento - outra atividade (R$/ano) | M16: =CaractSistema!E13 -> 0
G17: Quantidade produzida de DB | H17: =(D7*(1-D15)*D12)+(D7*D15*D16) -> 0 | L17: Juros sobre capital imobiliz. (ao ano) | M17: =CaractSistema!E14 -> 0
C18: Ganho de peso médio (kg/dia) | D18: =(D10-D9)/D12 ->  | G18: Ociosidade do sistema (%) | H18: =1-($H$16/$M$11) ->  | L18: Juros sobre capital imobiliz. (ao dia) | M18: =(1+M17/100)^(100/365)-1 -> 0
C19: Carcaça em @ | D19: =(D10*D13)/15 -> 0 | L19: Juros sobre capital de giro (ao ano) | M19: =CaractSistema!E15 -> 0
C20: Arrobas produzidas no período @ | D20: =D19-((D9*0.5)/15) -> 0 | L20: Juros sobre capital de giro (ao dia) | M20: =(1+M19/100)^(100/365)-1 -> 0
